{"text_format":"3","workbook":"xlsx","n_sheets":4,"sheets":["RIEPILOGO BUDGET YTD","RIEPILOGO SPESE MENSILI","DETTAGLIO SPESE","BENEFICENZA E SPONSORIZZAZIONI"],"not_rendered":{"images":1,"defined_names":15},"read":"whole","date_system":"1900"}

{"sheet":"RIEPILOGO BUDGET YTD","index":0,"n_rows":16,"n_cols":7,"rows_kept":16,"merged":[[1,1,1,4]]}
[]
[null,"EFFETTIVO e BUDGET DA INIZIO ANNO",{"$nulls":3},"ANNO",{"$f":"YEAR(TODAY())","v":2019}]
[null,"Codice CoGe","Titolo conto","Effettivo","Budget","Rimanente (€)","Rimanente (%)"]
[null,1000,"Pubblicità",{"$f":"SUMIF(RiepilogoSpeseMensili[Codice CoGe],YearToDateTable[[#This Row],[Codice CoGe]],RiepilogoSpeseMensili[Totale])","v":{"v":0,"d":"€ 0.00"}},{"v":100000,"d":"€ 100,000.00"},{"$f":"IF(YearToDateTable[[#This Row],[Budget]]=\"\",\"\",YearToDateTable[[#This Row],[Budget]]-YearToDateTable[[#This Row],[Effettivo]])","v":{"v":100000,"d":"€ 100,000.00"}},{"$f":"IFERROR(YearToDateTable[[#This Row],[Rimanente (€)]]/YearToDateTable[[#This Row],[Budget]],\"\")","v":{"v":1,"d":"100.00%"}}]
[null,2000,"Attrezzature ufficio",{"$f":"SUMIF(RiepilogoSpeseMensili[Codice CoGe],YearToDateTable[[#This Row],[Codice CoGe]],RiepilogoSpeseMensili[Totale])","v":{"v":0,"d":"€ 0.00"}},{"v":100000,"d":"€ 100,000.00"},{"$f":"IF(YearToDateTable[[#This Row],[Budget]]=\"\",\"\",YearToDateTable[[#This Row],[Budget]]-YearToDateTable[[#This Row],[Effettivo]])","v":{"v":100000,"d":"€ 100,000.00"}},{"$f":"IFERROR(YearToDateTable[[#This Row],[Rimanente (€)]]/YearToDateTable[[#This Row],[Budget]],\"\")","v":{"v":1,"d":"100.00%"}}]
[null,3000,"Stampanti",{"$f":"SUMIF(RiepilogoSpeseMensili[Codice CoGe],YearToDateTable[[#This Row],[Codice CoGe]],RiepilogoSpeseMensili[Totale])","v":{"v":0,"d":"€ 0.00"}},{"v":100000,"d":"€ 100,000.00"},{"$f":"IF(YearToDateTable[[#This Row],[Budget]]=\"\",\"\",YearToDateTable[[#This Row],[Budget]]-YearToDateTable[[#This Row],[Effettivo]])","v":{"v":100000,"d":"€ 100,000.00"}},{"$f":"IFERROR(YearToDateTable[[#This Row],[Rimanente (€)]]/YearToDateTable[[#This Row],[Budget]],\"\")","v":{"v":1,"d":"100.00%"}}]
[null,4000,"Costi dei server",{"$f":"SUMIF(RiepilogoSpeseMensili[Codice CoGe],YearToDateTable[[#This Row],[Codice CoGe]],RiepilogoSpeseMensili[Totale])","v":{"v":0,"d":"€ 0.00"}},{"v":100000,"d":"€ 100,000.00"},{"$f":"IF(YearToDateTable[[#This Row],[Budget]]=\"\",\"\",YearToDateTable[[#This Row],[Budget]]-YearToDateTable[[#This Row],[Effettivo]])","v":{"v":100000,"d":"€ 100,000.00"}},{"$f":"IFERROR(YearToDateTable[[#This Row],[Rimanente (€)]]/YearToDateTable[[#This Row],[Budget]],\"\")","v":{"v":1,"d":"100.00%"}}]
[null,5000,"Materiali",{"$f":"SUMIF(RiepilogoSpeseMensili[Codice CoGe],YearToDateTable[[#This Row],[Codice CoGe]],RiepilogoSpeseMensili[Totale])","v":{"v":0,"d":"€ 0.00"}},{"v":50000,"d":"€ 50,000.00"},{"$f":"IF(YearToDateTable[[#This Row],[Budget]]=\"\",\"\",YearToDateTable[[#This Row],[Budget]]-YearToDateTable[[#This Row],[Effettivo]])","v":{"v":50000,"d":"€ 50,000.00"}},{"$f":"IFERROR(YearToDateTable[[#This Row],[Rimanente (€)]]/YearToDateTable[[#This Row],[Budget]],\"\")","v":{"v":1,"d":"100.00%"}}]
[null,6000,"Spese client",{"$f":"SUMIF(RiepilogoSpeseMensili[Codice CoGe],YearToDateTable[[#This Row],[Codice CoGe]],RiepilogoSpeseMensili[Totale])","v":{"v":0,"d":"€ 0.00"}},{"v":25000,"d":"€ 25,000.00"},{"$f":"IF(YearToDateTable[[#This Row],[Budget]]=\"\",\"\",YearToDateTable[[#This Row],[Budget]]-YearToDateTable[[#This Row],[Effettivo]])","v":{"v":25000,"d":"€ 25,000.00"}},{"$f":"IFERROR(YearToDateTable[[#This Row],[Rimanente (€)]]/YearToDateTable[[#This Row],[Budget]],\"\")","v":{"v":1,"d":"100.00%"}}]
[null,7000,"Computer",{"$f":"SUMIF(RiepilogoSpeseMensili[Codice CoGe],YearToDateTable[[#This Row],[Codice CoGe]],RiepilogoSpeseMensili[Totale])","v":{"v":0,"d":"€ 0.00"}},{"v":75000,"d":"€ 75,000.00"},{"$f":"IF(YearToDateTable[[#This Row],[Budget]]=\"\",\"\",YearToDateTable[[#This Row],[Budget]]-YearToDateTable[[#This Row],[Effettivo]])","v":{"v":75000,"d":"€ 75,000.00"}},{"$f":"IFERROR(YearToDateTable[[#This Row],[Rimanente (€)]]/YearToDateTable[[#This Row],[Budget]],\"\")","v":{"v":1,"d":"100.00%"}}]
[null,8000,"Copertura sanitaria",{"$f":"SUMIF(RiepilogoSpeseMensili[Codice CoGe],YearToDateTable[[#This Row],[Codice CoGe]],RiepilogoSpeseMensili[Totale])","v":{"v":0,"d":"€ 0.00"}},{"v":65000,"d":"€ 65,000.00"},{"$f":"IF(YearToDateTable[[#This Row],[Budget]]=\"\",\"\",YearToDateTable[[#This Row],[Budget]]-YearToDateTable[[#This Row],[Effettivo]])","v":{"v":65000,"d":"€ 65,000.00"}},{"$f":"IFERROR(YearToDateTable[[#This Row],[Rimanente (€)]]/YearToDateTable[[#This Row],[Budget]],\"\")","v":{"v":1,"d":"100.00%"}}]
[null,9000,"Costi edificio",{"$f":"SUMIF(RiepilogoSpeseMensili[Codice CoGe],YearToDateTable[[#This Row],[Codice CoGe]],RiepilogoSpeseMensili[Totale])","v":{"v":0,"d":"€ 0.00"}},{"v":125000,"d":"€ 125,000.00"},{"$f":"IF(YearToDateTable[[#This Row],[Budget]]=\"\",\"\",YearToDateTable[[#This Row],[Budget]]-YearToDateTable[[#This Row],[Effettivo]])","v":{"v":125000,"d":"€ 125,000.00"}},{"$f":"IFERROR(YearToDateTable[[#This Row],[Rimanente (€)]]/YearToDateTable[[#This Row],[Budget]],\"\")","v":{"v":1,"d":"100.00%"}}]
[null,10000,"Marketing",{"$f":"SUMIF(RiepilogoSpeseMensili[Codice CoGe],YearToDateTable[[#This Row],[Codice CoGe]],RiepilogoSpeseMensili[Totale])","v":{"v":0,"d":"€ 0.00"}},{"v":100000,"d":"€ 100,000.00"},{"$f":"IF(YearToDateTable[[#This Row],[Budget]]=\"\",\"\",YearToDateTable[[#This Row],[Budget]]-YearToDateTable[[#This Row],[Effettivo]])","v":{"v":100000,"d":"€ 100,000.00"}},{"$f":"IFERROR(YearToDateTable[[#This Row],[Rimanente (€)]]/YearToDateTable[[#This Row],[Budget]],\"\")","v":{"v":1,"d":"100.00%"}}]
[null,11000,"Beneficenza",{"$f":"SUMIF(RiepilogoSpeseMensili[Codice CoGe],YearToDateTable[[#This Row],[Codice CoGe]],RiepilogoSpeseMensili[Totale])","v":{"v":0,"d":"€ 0.00"}},{"v":250000,"d":"€ 250,000.00"},{"$f":"IF(YearToDateTable[[#This Row],[Budget]]=\"\",\"\",YearToDateTable[[#This Row],[Budget]]-YearToDateTable[[#This Row],[Effettivo]])","v":{"v":250000,"d":"€ 250,000.00"}},{"$f":"IFERROR(YearToDateTable[[#This Row],[Rimanente (€)]]/YearToDateTable[[#This Row],[Budget]],\"\")","v":{"v":1,"d":"100.00%"}}]
[null,12000,"Sponsorizzazioni",{"$f":"SUMIF(RiepilogoSpeseMensili[Codice CoGe],YearToDateTable[[#This Row],[Codice CoGe]],RiepilogoSpeseMensili[Totale])","v":{"v":0,"d":"€ 0.00"}},{"v":50000,"d":"€ 50,000.00"},{"$f":"IF(YearToDateTable[[#This Row],[Budget]]=\"\",\"\",YearToDateTable[[#This Row],[Budget]]-YearToDateTable[[#This Row],[Effettivo]])","v":{"v":50000,"d":"€ 50,000.00"}},{"$f":"IFERROR(YearToDateTable[[#This Row],[Rimanente (€)]]/YearToDateTable[[#This Row],[Budget]],\"\")","v":{"v":1,"d":"100.00%"}}]
[null,"Totale",null,{"$f":"SUBTOTAL(109,YearToDateTable[Effettivo])","v":{"v":0,"d":"€ 0.00"}},{"$f":"SUBTOTAL(109,YearToDateTable[Budget])","v":{"v":1140000,"d":"€ 1,140,000.00"}},{"$f":"SUBTOTAL(109,YearToDateTable[Rimanente (€)])","v":{"v":1140000,"d":"€ 1,140,000.00"}},{"$f":"YearToDateTable[[#Totals],[Rimanente (€)]]/YearToDateTable[[#Totals],[Budget]]","v":{"v":1,"d":"100.00%"}}]

{"sheet":"RIEPILOGO SPESE MENSILI","index":1,"n_rows":18,"n_cols":17,"rows_kept":18,"merged":[[1,1,1,16]]}
[]
[null,"RIEPILOGO USCITE MENSILI"]
[null,"Questa cella contiene il filtro dei dati per filtrare i dati in base ai titoli dei conti.",null,{"$f":"DATEVALUE(\"1-GEN\"&_ANNO)","v":{"v":43466,"d":"4346600.00%"}},{"$f":"DATEVALUE(\"1-FEB\"&_ANNO)","v":{"v":43497,"d":"4349700.00%"}},{"$f":"DATEVALUE(\"1-MAR\"&_ANNO)","v":{"v":43525,"d":"4352500.00%"}},{"$f":"DATEVALUE(\"1-APR\"&_ANNO)","v":{"v":43556,"d":"4355600.00%"}},{"$f":"DATEVALUE(\"1-MAG\"&_ANNO)","v":{"v":43586,"d":"4358600.00%"}},{"$f":"DATEVALUE(\"1-GIU\"&_ANNO)","v":{"v":43617,"d":"4361700.00%"}},{"$f":"DATEVALUE(\"1-LUG\"&_ANNO)","v":{"v":43647,"d":"4364700.00%"}},{"$f":"DATEVALUE(\"1-AGO\"&_ANNO)","v":{"v":43678,"d":"4367800.00%"}},{"$f":"DATEVALUE(\"1-SET\"&_ANNO)","v":{"v":43709,"d":"4370900.00%"}},{"$f":"DATEVALUE(\"1-OTT\"&_ANNO)","v":{"v":43739,"d":"4373900.00%"}},{"$f":"DATEVALUE(\"1-NOV\"&_ANNO)","v":{"v":43770,"d":"4377000.00%"}},{"$f":"DATEVALUE(\"1-DIC\"&_ANNO)","v":{"v":43800,"d":"4380000.00%"}}]
[{"$nulls":3},{"$f":"EOMONTH(D3,0)","v":{"v":43496,"d":"4349600.00%"}},{"$f":"EOMONTH(E3,0)","v":{"v":43524,"d":"4352400.00%"}},{"$f":"EOMONTH(F3,0)","v":{"v":43555,"d":"4355500.00%"}},{"$f":"EOMONTH(G3,0)","v":{"v":43585,"d":"4358500.00%"}},{"$f":"EOMONTH(H3,0)","v":{"v":43616,"d":"4361600.00%"}},{"$f":"EOMONTH(I3,0)","v":{"v":43646,"d":"4364600.00%"}},{"v":43677,"d":"4367700.00%"},{"v":43708,"d":"4370800.00%"},{"v":43738,"d":"4373800.00%"},{"v":43769,"d":"4376900.00%"},{"v":43799,"d":"4379900.00%"},{"v":43830,"d":"4383000.00%"}]
[null,"Codice CoGe","Titolo conto","Gennaio","Febbraio","Marzo","Aprile","Maggio","Giugno","Luglio","Agosto","Settembre","Ottobre","Novembre","Dicembre","Totale"," "]
[null,1000,"Pubblicità",{"$f":"SUMIFS(DettaglioSpese[Importo assegno],DettaglioSpese[Codice CoGe],RiepilogoSpeseMensili[[#This Row],[Codice CoGe]],DettaglioSpese[Data fattura],\">=\"&D$3,DettaglioSpese[Data fattura],\"<=\"&D$4)+SUMIFS(Altro[Importo assegno],Altro[Codice CoGe],RiepilogoSpeseMensili[[#This Row],[Codice CoGe]],Altro[Data avvio richiesta assegno],\">=\"&DATEVALUE(\" 1 \"&RiepilogoSpeseMensili[[#Headers],[Gennaio]]&_ANNO),Altro[Data avvio richiesta assegno],\"<=\"&D$4)","v":{"v":0,"d":"€ 0.00"}},{"$f":"SUMIFS(DettaglioSpese[Importo assegno],DettaglioSpese[Codice CoGe],RiepilogoSpeseMensili[[#This Row],[Codice CoGe]],DettaglioSpese[Data fattura],\">=\"&E$3,DettaglioSpese[Data fattura],\"<=\"&E$4)+SUMIFS(Altro[Importo assegno],Altro[Codice CoGe],RiepilogoSpeseMensili[[#This Row],[Codice CoGe]],Altro[Data avvio richiesta assegno],\">=\"&DATEVALUE(\" 1 \"&RiepilogoSpeseMensili[[#Headers],[Febbraio]]&_ANNO),Altro[Data avvio richiesta assegno],\"<=\"&E$4)","v":{"v":0,"d":"€ 0.00"}},{"$f":"SUMIFS(DettaglioSpese[Importo assegno],DettaglioSpese[Codice CoGe],RiepilogoSpeseMensili[[#This Row],[Codice CoGe]],DettaglioSpese[Data fattura],\">=\"&F$3,DettaglioSpese[Data fattura],\"<=\"&F$4)+SUMIFS(Altro[Importo assegno],Altro[Codice CoGe],RiepilogoSpeseMensili[[#This Row],[Codice CoGe]],Altro[Data avvio richiesta assegno],\">=\"&DATEVALUE(\" 1 \"&RiepilogoSpeseMensili[[#Headers],[Marzo]]&_ANNO),Altro[Data avvio richiesta assegno],\"<=\"&F$4)","v":{"v":0,"d":"€ 0.00"}},{"$f":"SUMIFS(DettaglioSpese[Importo assegno],DettaglioSpese[Codice CoGe],RiepilogoSpeseMensili[[#This Row],[Codice CoGe]],DettaglioSpese[Data fattura],\">=\"&G$3,DettaglioSpese[Data fattura],\"<=\"&G$4)+SUMIFS(Altro[Importo assegno],Altro[Codice CoGe],RiepilogoSpeseMensili[[#This Row],[Codice CoGe]],Altro[Data avvio richiesta assegno],\">=\"&DATEVALUE(\" 1 \"&RiepilogoSpeseMensili[[#Headers],[Aprile]]&_ANNO),Altro[Data avvio richiesta assegno],\"<=\"&G$4)","v":{"v":0,"d":"€ 0.00"}},{"$f":"SUMIFS(DettaglioSpese[Importo assegno],DettaglioSpese[Codice CoGe],RiepilogoSpeseMensili[[#This Row],[Codice CoGe]],DettaglioSpese[Data fattura],\">=\"&H$3,DettaglioSpese[Data fattura],\"<=\"&H$4)+SUMIFS(Altro[Importo assegno],Altro[Codice CoGe],RiepilogoSpeseMensili[[#This Row],[Codice CoGe]],Altro[Data avvio richiesta assegno],\">=\"&DATEVALUE(\" 1 \"&RiepilogoSpeseMensili[[#Headers],[Maggio]]&_ANNO),Altro[Data avvio richiesta assegno],\"<=\"&H$4)","v":{"v":0,"d":"€ 0.00"}},{"$f":"SUMIFS(DettaglioSpese[Importo assegno],DettaglioSpese[Codice CoGe],RiepilogoSpeseMensili[[#This Row],[Codice CoGe]],DettaglioSpese[Data fattura],\">=\"&I$3,DettaglioSpese[Data fattura],\"<=\"&I$4)+SUMIFS(Altro[Importo assegno],Altro[Codice CoGe],RiepilogoSpeseMensili[[#This Row],[Codice CoGe]],Altro[Data avvio richiesta assegno],\">=\"&DATEVALUE(\" 1 \"&RiepilogoSpeseMensili[[#Headers],[Giugno]]&_ANNO),Altro[Data avvio richiesta assegno],\"<=\"&I$4)","v":{"v":0,"d":"€ 0.00"}},{"$f":"SUMIFS(DettaglioSpese[Importo assegno],DettaglioSpese[Codice CoGe],RiepilogoSpeseMensili[[#This Row],[Codice CoGe]],DettaglioSpese[Data fattura],\">=\"&J$3,DettaglioSpese[Data fattura],\"<=\"&J$4)+SUMIFS(Altro[Importo assegno],Altro[Codice CoGe],RiepilogoSpeseMensili[[#This Row],[Codice CoGe]],Altro[Data avvio richiesta assegno],\">=\"&DATEVALUE(\" 1\"&RiepilogoSpeseMensili[[#Headers],[Luglio]]&_ANNO),Altro[Data avvio richiesta assegno],\"<=\"&J$4)","v":{"v":0,"d":"€ 0.00"}},{"$f":"SUMIFS(DettaglioSpese[Importo assegno],DettaglioSpese[Codice CoGe],RiepilogoSpeseMensili[[#This Row],[Codice CoGe]],DettaglioSpese[Data fattura],\">=\"&K$3,DettaglioSpese[Data fattura],\"<=\"&K$4)+SUMIFS(Altro[Importo assegno],Altro[Codice CoGe],RiepilogoSpeseMensili[[#This Row],[Codice CoGe]],Altro[Data avvio richiesta assegno],\">=\"&DATEVALUE(\" 1 \"&RiepilogoSpeseMensili[[#Headers],[Agosto]]&_ANNO),Altro[Data avvio richiesta assegno],\"<=\"&K$4)","v":{"v":0,"d":"€ 0.00"}},{"$f":"SUMIFS(DettaglioSpese[Importo assegno],DettaglioSpese[Codice CoGe],RiepilogoSpeseMensili[[#This Row],[Codice CoGe]],DettaglioSpese[Data fattura],\">=\"&L$3,DettaglioSpese[Data fattura],\"<=\"&L$4)+SUMIFS(Altro[Importo assegno],Altro[Codice CoGe],RiepilogoSpeseMensili[[#This Row],[Codice CoGe]],Altro[Data avvio richiesta assegno],\">=\"&DATEVALUE(\" 1 \"&RiepilogoSpeseMensili[[#Headers],[Settembre]]&_ANNO),Altro[Data avvio richiesta assegno],\"<=\"&L$4)","v":{"v":0,"d":"€ 0.00"}},{"$f":"SUMIFS(DettaglioSpese[Importo assegno],DettaglioSpese[Codice CoGe],RiepilogoSpeseMensili[[#This Row],[Codice CoGe]],DettaglioSpese[Data fattura],\">=\"&M$3,DettaglioSpese[Data fattura],\"<=\"&M$4)+SUMIFS(Altro[Importo assegno],Altro[Codice CoGe],RiepilogoSpeseMensili[[#This Row],[Codice CoGe]],Altro[Data avvio richiesta assegno],\">=\"&DATEVALUE(\" 1 \"&RiepilogoSpeseMensili[[#Headers],[Ottobre]]&_ANNO),Altro[Data avvio richiesta assegno],\"<=\"&M$4)","v":{"v":0,"d":"€ 0.00"}},{"$f":"SUMIFS(DettaglioSpese[Importo assegno],DettaglioSpese[Codice CoGe],RiepilogoSpeseMensili[[#This Row],[Codice CoGe]],DettaglioSpese[Data fattura],\">=\"&N$3,DettaglioSpese[Data fattura],\"<=\"&N$4)+SUMIFS(Altro[Importo assegno],Altro[Codice CoGe],RiepilogoSpeseMensili[[#This Row],[Codice CoGe]],Altro[Data avvio richiesta assegno],\">=\"&DATEVALUE(\" 1 \"&RiepilogoSpeseMensili[[#Headers],[Novembre]]&_ANNO),Altro[Data avvio richiesta assegno],\"<=\"&N$4)","v":{"v":0,"d":"€ 0.00"}},{"$f":"SUMIFS(DettaglioSpese[Importo assegno],DettaglioSpese[Codice CoGe],RiepilogoSpeseMensili[[#This Row],[Codice CoGe]],DettaglioSpese[Data fattura],\">=\"&O$3,DettaglioSpese[Data fattura],\"<=\"&O$4)+SUMIFS(Altro[Importo assegno],Altro[Codice CoGe],RiepilogoSpeseMensili[[#This Row],[Codice CoGe]],Altro[Data avvio richiesta assegno],\">=\"&DATEVALUE(\" 1 \"&RiepilogoSpeseMensili[[#Headers],[Dicembre]]&_ANNO),Altro[Data avvio richiesta assegno],\"<=\"&O$4)","v":{"v":0,"d":"€ 0.00"}},{"$f":"SUM(RiepilogoSpeseMensili[[#This Row],[Gennaio]:[Dicembre]])","v":{"v":0,"d":"€ 0.00"}}]
[null,2000,"Attrezzature ufficio",{"$f":"SUMIFS(DettaglioSpese[Importo assegno],DettaglioSpese[Codice CoGe],RiepilogoSpeseMensili[[#This Row],[Codice CoGe]],DettaglioSpese[Data fattura],\">=\"&D$3,DettaglioSpese[Data fattura],\"<=\"&D$4)+SUMIFS(Altro[Importo assegno],Altro[Codice CoGe],RiepilogoSpeseMensili[[#This Row],[Codice CoGe]],Altro[Data avvio richiesta assegno],\">=\"&DATEVALUE(\" 1 \"&RiepilogoSpeseMensili[[#Headers],[Gennaio]]&_ANNO),Altro[Data avvio richiesta assegno],\"<=\"&D$4)","v":{"v":0,"d":"€ 0.00"}},{"$f":"SUMIFS(DettaglioSpese[Importo assegno],DettaglioSpese[Codice CoGe],RiepilogoSpeseMensili[[#This Row],[Codice CoGe]],DettaglioSpese[Data fattura],\">=\"&E$3,DettaglioSpese[Data fattura],\"<=\"&E$4)+SUMIFS(Altro[Importo assegno],Altro[Codice CoGe],RiepilogoSpeseMensili[[#This Row],[Codice CoGe]],Altro[Data avvio richiesta assegno],\">=\"&DATEVALUE(\" 1 \"&RiepilogoSpeseMensili[[#Headers],[Febbraio]]&_ANNO),Altro[Data avvio richiesta assegno],\"<=\"&E$4)","v":{"v":0,"d":"€ 0.00"}},{"$f":"SUMIFS(DettaglioSpese[Importo assegno],DettaglioSpese[Codice CoGe],RiepilogoSpeseMensili[[#This Row],[Codice CoGe]],DettaglioSpese[Data fattura],\">=\"&F$3,DettaglioSpese[Data fattura],\"<=\"&F$4)+SUMIFS(Altro[Importo assegno],Altro[Codice CoGe],RiepilogoSpeseMensili[[#This Row],[Codice CoGe]],Altro[Data avvio richiesta assegno],\">=\"&DATEVALUE(\" 1 \"&RiepilogoSpeseMensili[[#Headers],[Marzo]]&_ANNO),Altro[Data avvio richiesta assegno],\"<=\"&F$4)","v":{"v":0,"d":"€ 0.00"}},{"$f":"SUMIFS(DettaglioSpese[Importo assegno],DettaglioSpese[Codice CoGe],RiepilogoSpeseMensili[[#This Row],[Codice CoGe]],DettaglioSpese[Data fattura],\">=\"&G$3,DettaglioSpese[Data fattura],\"<=\"&G$4)+SUMIFS(Altro[Importo assegno],Altro[Codice CoGe],RiepilogoSpeseMensili[[#This Row],[Codice CoGe]],Altro[Data avvio richiesta assegno],\">=\"&DATEVALUE(\" 1 \"&RiepilogoSpeseMensili[[#Headers],[Aprile]]&_ANNO),Altro[Data avvio richiesta assegno],\"<=\"&G$4)","v":{"v":0,"d":"€ 0.00"}},{"$f":"SUMIFS(DettaglioSpese[Importo assegno],DettaglioSpese[Codice CoGe],RiepilogoSpeseMensili[[#This Row],[Codice CoGe]],DettaglioSpese[Data fattura],\">=\"&H$3,DettaglioSpese[Data fattura],\"<=\"&H$4)+SUMIFS(Altro[Importo assegno],Altro[Codice CoGe],RiepilogoSpeseMensili[[#This Row],[Codice CoGe]],Altro[Data avvio richiesta assegno],\">=\"&DATEVALUE(\" 1 \"&RiepilogoSpeseMensili[[#Headers],[Maggio]]&_ANNO),Altro[Data avvio richiesta assegno],\"<=\"&H$4)","v":{"v":0,"d":"€ 0.00"}},{"$f":"SUMIFS(DettaglioSpese[Importo assegno],DettaglioSpese[Codice CoGe],RiepilogoSpeseMensili[[#This Row],[Codice CoGe]],DettaglioSpese[Data fattura],\">=\"&I$3,DettaglioSpese[Data fattura],\"<=\"&I$4)+SUMIFS(Altro[Importo assegno],Altro[Codice CoGe],RiepilogoSpeseMensili[[#This Row],[Codice CoGe]],Altro[Data avvio richiesta assegno],\">=\"&DATEVALUE(\" 1 \"&RiepilogoSpeseMensili[[#Headers],[Giugno]]&_ANNO),Altro[Data avvio richiesta assegno],\"<=\"&I$4)","v":{"v":0,"d":"€ 0.00"}},{"$f":"SUMIFS(DettaglioSpese[Importo assegno],DettaglioSpese[Codice CoGe],RiepilogoSpeseMensili[[#This Row],[Codice CoGe]],DettaglioSpese[Data fattura],\">=\"&J$3,DettaglioSpese[Data fattura],\"<=\"&J$4)+SUMIFS(Altro[Importo assegno],Altro[Codice CoGe],RiepilogoSpeseMensili[[#This Row],[Codice CoGe]],Altro[Data avvio richiesta assegno],\">=\"&DATEVALUE(\" 1\"&RiepilogoSpeseMensili[[#Headers],[Luglio]]&_ANNO),Altro[Data avvio richiesta assegno],\"<=\"&J$4)","v":{"v":0,"d":"€ 0.00"}},{"$f":"SUMIFS(DettaglioSpese[Importo assegno],DettaglioSpese[Codice CoGe],RiepilogoSpeseMensili[[#This Row],[Codice CoGe]],DettaglioSpese[Data fattura],\">=\"&K$3,DettaglioSpese[Data fattura],\"<=\"&K$4)+SUMIFS(Altro[Importo assegno],Altro[Codice CoGe],RiepilogoSpeseMensili[[#This Row],[Codice CoGe]],Altro[Data avvio richiesta assegno],\">=\"&DATEVALUE(\" 1 \"&RiepilogoSpeseMensili[[#Headers],[Agosto]]&_ANNO),Altro[Data avvio richiesta assegno],\"<=\"&K$4)","v":{"v":0,"d":"€ 0.00"}},{"$f":"SUMIFS(DettaglioSpese[Importo assegno],DettaglioSpese[Codice CoGe],RiepilogoSpeseMensili[[#This Row],[Codice CoGe]],DettaglioSpese[Data fattura],\">=\"&L$3,DettaglioSpese[Data fattura],\"<=\"&L$4)+SUMIFS(Altro[Importo assegno],Altro[Codice CoGe],RiepilogoSpeseMensili[[#This Row],[Codice CoGe]],Altro[Data avvio richiesta assegno],\">=\"&DATEVALUE(\" 1 \"&RiepilogoSpeseMensili[[#Headers],[Settembre]]&_ANNO),Altro[Data avvio richiesta assegno],\"<=\"&L$4)","v":{"v":0,"d":"€ 0.00"}},{"$f":"SUMIFS(DettaglioSpese[Importo assegno],DettaglioSpese[Codice CoGe],RiepilogoSpeseMensili[[#This Row],[Codice CoGe]],DettaglioSpese[Data fattura],\">=\"&M$3,DettaglioSpese[Data fattura],\"<=\"&M$4)+SUMIFS(Altro[Importo assegno],Altro[Codice CoGe],RiepilogoSpeseMensili[[#This Row],[Codice CoGe]],Altro[Data avvio richiesta assegno],\">=\"&DATEVALUE(\" 1 \"&RiepilogoSpeseMensili[[#Headers],[Ottobre]]&_ANNO),Altro[Data avvio richiesta assegno],\"<=\"&M$4)","v":{"v":0,"d":"€ 0.00"}},{"$f":"SUMIFS(DettaglioSpese[Importo assegno],DettaglioSpese[Codice CoGe],RiepilogoSpeseMensili[[#This Row],[Codice CoGe]],DettaglioSpese[Data fattura],\">=\"&N$3,DettaglioSpese[Data fattura],\"<=\"&N$4)+SUMIFS(Altro[Importo assegno],Altro[Codice CoGe],RiepilogoSpeseMensili[[#This Row],[Codice CoGe]],Altro[Data avvio richiesta assegno],\">=\"&DATEVALUE(\" 1 \"&RiepilogoSpeseMensili[[#Headers],[Novembre]]&_ANNO),Altro[Data avvio richiesta assegno],\"<=\"&N$4)","v":{"v":0,"d":"€ 0.00"}},{"$f":"SUMIFS(DettaglioSpese[Importo assegno],DettaglioSpese[Codice CoGe],RiepilogoSpeseMensili[[#This Row],[Codice CoGe]],DettaglioSpese[Data fattura],\">=\"&O$3,DettaglioSpese[Data fattura],\"<=\"&O$4)+SUMIFS(Altro[Importo assegno],Altro[Codice CoGe],RiepilogoSpeseMensili[[#This Row],[Codice CoGe]],Altro[Data avvio richiesta assegno],\">=\"&DATEVALUE(\" 1 \"&RiepilogoSpeseMensili[[#Headers],[Dicembre]]&_ANNO),Altro[Data avvio richiesta assegno],\"<=\"&O$4)","v":{"v":0,"d":"€ 0.00"}},{"$f":"SUM(RiepilogoSpeseMensili[[#This Row],[Gennaio]:[Dicembre]])","v":{"v":0,"d":"€ 0.00"}}]
[null,3000,"Stampanti",{"$f":"SUMIFS(DettaglioSpese[Importo assegno],DettaglioSpese[Codice CoGe],RiepilogoSpeseMensili[[#This Row],[Codice CoGe]],DettaglioSpese[Data fattura],\">=\"&D$3,DettaglioSpese[Data fattura],\"<=\"&D$4)+SUMIFS(Altro[Importo assegno],Altro[Codice CoGe],RiepilogoSpeseMensili[[#This Row],[Codice CoGe]],Altro[Data avvio richiesta assegno],\">=\"&DATEVALUE(\" 1 \"&RiepilogoSpeseMensili[[#Headers],[Gennaio]]&_ANNO),Altro[Data avvio richiesta assegno],\"<=\"&D$4)","v":{"v":0,"d":"€ 0.00"}},{"$f":"SUMIFS(DettaglioSpese[Importo assegno],DettaglioSpese[Codice CoGe],RiepilogoSpeseMensili[[#This Row],[Codice CoGe]],DettaglioSpese[Data fattura],\">=\"&E$3,DettaglioSpese[Data fattura],\"<=\"&E$4)+SUMIFS(Altro[Importo assegno],Altro[Codice CoGe],RiepilogoSpeseMensili[[#This Row],[Codice CoGe]],Altro[Data avvio richiesta assegno],\">=\"&DATEVALUE(\" 1 \"&RiepilogoSpeseMensili[[#Headers],[Febbraio]]&_ANNO),Altro[Data avvio richiesta assegno],\"<=\"&E$4)","v":{"v":0,"d":"€ 0.00"}},{"$f":"SUMIFS(DettaglioSpese[Importo assegno],DettaglioSpese[Codice CoGe],RiepilogoSpeseMensili[[#This Row],[Codice CoGe]],DettaglioSpese[Data fattura],\">=\"&F$3,DettaglioSpese[Data fattura],\"<=\"&F$4)+SUMIFS(Altro[Importo assegno],Altro[Codice CoGe],RiepilogoSpeseMensili[[#This Row],[Codice CoGe]],Altro[Data avvio richiesta assegno],\">=\"&DATEVALUE(\" 1 \"&RiepilogoSpeseMensili[[#Headers],[Marzo]]&_ANNO),Altro[Data avvio richiesta assegno],\"<=\"&F$4)","v":{"v":0,"d":"€ 0.00"}},{"$f":"SUMIFS(DettaglioSpese[Importo assegno],DettaglioSpese[Codice CoGe],RiepilogoSpeseMensili[[#This Row],[Codice CoGe]],DettaglioSpese[Data fattura],\">=\"&G$3,DettaglioSpese[Data fattura],\"<=\"&G$4)+SUMIFS(Altro[Importo assegno],Altro[Codice CoGe],RiepilogoSpeseMensili[[#This Row],[Codice CoGe]],Altro[Data avvio richiesta assegno],\">=\"&DATEVALUE(\" 1 \"&RiepilogoSpeseMensili[[#Headers],[Aprile]]&_ANNO),Altro[Data avvio richiesta assegno],\"<=\"&G$4)","v":{"v":0,"d":"€ 0.00"}},{"$f":"SUMIFS(DettaglioSpese[Importo assegno],DettaglioSpese[Codice CoGe],RiepilogoSpeseMensili[[#This Row],[Codice CoGe]],DettaglioSpese[Data fattura],\">=\"&H$3,DettaglioSpese[Data fattura],\"<=\"&H$4)+SUMIFS(Altro[Importo assegno],Altro[Codice CoGe],RiepilogoSpeseMensili[[#This Row],[Codice CoGe]],Altro[Data avvio richiesta assegno],\">=\"&DATEVALUE(\" 1 \"&RiepilogoSpeseMensili[[#Headers],[Maggio]]&_ANNO),Altro[Data avvio richiesta assegno],\"<=\"&H$4)","v":{"v":0,"d":"€ 0.00"}},{"$f":"SUMIFS(DettaglioSpese[Importo assegno],DettaglioSpese[Codice CoGe],RiepilogoSpeseMensili[[#This Row],[Codice CoGe]],DettaglioSpese[Data fattura],\">=\"&I$3,DettaglioSpese[Data fattura],\"<=\"&I$4)+SUMIFS(Altro[Importo assegno],Altro[Codice CoGe],RiepilogoSpeseMensili[[#This Row],[Codice CoGe]],Altro[Data avvio richiesta assegno],\">=\"&DATEVALUE(\" 1 \"&RiepilogoSpeseMensili[[#Headers],[Giugno]]&_ANNO),Altro[Data avvio richiesta assegno],\"<=\"&I$4)","v":{"v":0,"d":"€ 0.00"}},{"$f":"SUMIFS(DettaglioSpese[Importo assegno],DettaglioSpese[Codice CoGe],RiepilogoSpeseMensili[[#This Row],[Codice CoGe]],DettaglioSpese[Data fattura],\">=\"&J$3,DettaglioSpese[Data fattura],\"<=\"&J$4)+SUMIFS(Altro[Importo assegno],Altro[Codice CoGe],RiepilogoSpeseMensili[[#This Row],[Codice CoGe]],Altro[Data avvio richiesta assegno],\">=\"&DATEVALUE(\" 1\"&RiepilogoSpeseMensili[[#Headers],[Luglio]]&_ANNO),Altro[Data avvio richiesta assegno],\"<=\"&J$4)","v":{"v":0,"d":"€ 0.00"}},{"$f":"SUMIFS(DettaglioSpese[Importo assegno],DettaglioSpese[Codice CoGe],RiepilogoSpeseMensili[[#This Row],[Codice CoGe]],DettaglioSpese[Data fattura],\">=\"&K$3,DettaglioSpese[Data fattura],\"<=\"&K$4)+SUMIFS(Altro[Importo assegno],Altro[Codice CoGe],RiepilogoSpeseMensili[[#This Row],[Codice CoGe]],Altro[Data avvio richiesta assegno],\">=\"&DATEVALUE(\" 1 \"&RiepilogoSpeseMensili[[#Headers],[Agosto]]&_ANNO),Altro[Data avvio richiesta assegno],\"<=\"&K$4)","v":{"v":0,"d":"€ 0.00"}},{"$f":"SUMIFS(DettaglioSpese[Importo assegno],DettaglioSpese[Codice CoGe],RiepilogoSpeseMensili[[#This Row],[Codice CoGe]],DettaglioSpese[Data fattura],\">=\"&L$3,DettaglioSpese[Data fattura],\"<=\"&L$4)+SUMIFS(Altro[Importo assegno],Altro[Codice CoGe],RiepilogoSpeseMensili[[#This Row],[Codice CoGe]],Altro[Data avvio richiesta assegno],\">=\"&DATEVALUE(\" 1 \"&RiepilogoSpeseMensili[[#Headers],[Settembre]]&_ANNO),Altro[Data avvio richiesta assegno],\"<=\"&L$4)","v":{"v":0,"d":"€ 0.00"}},{"$f":"SUMIFS(DettaglioSpese[Importo assegno],DettaglioSpese[Codice CoGe],RiepilogoSpeseMensili[[#This Row],[Codice CoGe]],DettaglioSpese[Data fattura],\">=\"&M$3,DettaglioSpese[Data fattura],\"<=\"&M$4)+SUMIFS(Altro[Importo assegno],Altro[Codice CoGe],RiepilogoSpeseMensili[[#This Row],[Codice CoGe]],Altro[Data avvio richiesta assegno],\">=\"&DATEVALUE(\" 1 \"&RiepilogoSpeseMensili[[#Headers],[Ottobre]]&_ANNO),Altro[Data avvio richiesta assegno],\"<=\"&M$4)","v":{"v":0,"d":"€ 0.00"}},{"$f":"SUMIFS(DettaglioSpese[Importo assegno],DettaglioSpese[Codice CoGe],RiepilogoSpeseMensili[[#This Row],[Codice CoGe]],DettaglioSpese[Data fattura],\">=\"&N$3,DettaglioSpese[Data fattura],\"<=\"&N$4)+SUMIFS(Altro[Importo assegno],Altro[Codice CoGe],RiepilogoSpeseMensili[[#This Row],[Codice CoGe]],Altro[Data avvio richiesta assegno],\">=\"&DATEVALUE(\" 1 \"&RiepilogoSpeseMensili[[#Headers],[Novembre]]&_ANNO),Altro[Data avvio richiesta assegno],\"<=\"&N$4)","v":{"v":0,"d":"€ 0.00"}},{"$f":"SUMIFS(DettaglioSpese[Importo assegno],DettaglioSpese[Codice CoGe],RiepilogoSpeseMensili[[#This Row],[Codice CoGe]],DettaglioSpese[Data fattura],\">=\"&O$3,DettaglioSpese[Data fattura],\"<=\"&O$4)+SUMIFS(Altro[Importo assegno],Altro[Codice CoGe],RiepilogoSpeseMensili[[#This Row],[Codice CoGe]],Altro[Data avvio richiesta assegno],\">=\"&DATEVALUE(\" 1 \"&RiepilogoSpeseMensili[[#Headers],[Dicembre]]&_ANNO),Altro[Data avvio richiesta assegno],\"<=\"&O$4)","v":{"v":0,"d":"€ 0.00"}},{"$f":"SUM(RiepilogoSpeseMensili[[#This Row],[Gennaio]:[Dicembre]])","v":{"v":0,"d":"€ 0.00"}}]
[null,4000,"Costi dei server",{"$f":"SUMIFS(DettaglioSpese[Importo assegno],DettaglioSpese[Codice CoGe],RiepilogoSpeseMensili[[#This Row],[Codice CoGe]],DettaglioSpese[Data fattura],\">=\"&D$3,DettaglioSpese[Data fattura],\"<=\"&D$4)+SUMIFS(Altro[Importo assegno],Altro[Codice CoGe],RiepilogoSpeseMensili[[#This Row],[Codice CoGe]],Altro[Data avvio richiesta assegno],\">=\"&DATEVALUE(\" 1 \"&RiepilogoSpeseMensili[[#Headers],[Gennaio]]&_ANNO),Altro[Data avvio richiesta assegno],\"<=\"&D$4)","v":{"v":0,"d":"€ 0.00"}},{"$f":"SUMIFS(DettaglioSpese[Importo assegno],DettaglioSpese[Codice CoGe],RiepilogoSpeseMensili[[#This Row],[Codice CoGe]],DettaglioSpese[Data fattura],\">=\"&E$3,DettaglioSpese[Data fattura],\"<=\"&E$4)+SUMIFS(Altro[Importo assegno],Altro[Codice CoGe],RiepilogoSpeseMensili[[#This Row],[Codice CoGe]],Altro[Data avvio richiesta assegno],\">=\"&DATEVALUE(\" 1 \"&RiepilogoSpeseMensili[[#Headers],[Febbraio]]&_ANNO),Altro[Data avvio richiesta assegno],\"<=\"&E$4)","v":{"v":0,"d":"€ 0.00"}},{"$f":"SUMIFS(DettaglioSpese[Importo assegno],DettaglioSpese[Codice CoGe],RiepilogoSpeseMensili[[#This Row],[Codice CoGe]],DettaglioSpese[Data fattura],\">=\"&F$3,DettaglioSpese[Data fattura],\"<=\"&F$4)+SUMIFS(Altro[Importo assegno],Altro[Codice CoGe],RiepilogoSpeseMensili[[#This Row],[Codice CoGe]],Altro[Data avvio richiesta assegno],\">=\"&DATEVALUE(\" 1 \"&RiepilogoSpeseMensili[[#Headers],[Marzo]]&_ANNO),Altro[Data avvio richiesta assegno],\"<=\"&F$4)","v":{"v":0,"d":"€ 0.00"}},{"$f":"SUMIFS(DettaglioSpese[Importo assegno],DettaglioSpese[Codice CoGe],RiepilogoSpeseMensili[[#This Row],[Codice CoGe]],DettaglioSpese[Data fattura],\">=\"&G$3,DettaglioSpese[Data fattura],\"<=\"&G$4)+SUMIFS(Altro[Importo assegno],Altro[Codice CoGe],RiepilogoSpeseMensili[[#This Row],[Codice CoGe]],Altro[Data avvio richiesta assegno],\">=\"&DATEVALUE(\" 1 \"&RiepilogoSpeseMensili[[#Headers],[Aprile]]&_ANNO),Altro[Data avvio richiesta assegno],\"<=\"&G$4)","v":{"v":0,"d":"€ 0.00"}},{"$f":"SUMIFS(DettaglioSpese[Importo assegno],DettaglioSpese[Codice CoGe],RiepilogoSpeseMensili[[#This Row],[Codice CoGe]],DettaglioSpese[Data fattura],\">=\"&H$3,DettaglioSpese[Data fattura],\"<=\"&H$4)+SUMIFS(Altro[Importo assegno],Altro[Codice CoGe],RiepilogoSpeseMensili[[#This Row],[Codice CoGe]],Altro[Data avvio richiesta assegno],\">=\"&DATEVALUE(\" 1 \"&RiepilogoSpeseMensili[[#Headers],[Maggio]]&_ANNO),Altro[Data avvio richiesta assegno],\"<=\"&H$4)","v":{"v":0,"d":"€ 0.00"}},{"$f":"SUMIFS(DettaglioSpese[Importo assegno],DettaglioSpese[Codice CoGe],RiepilogoSpeseMensili[[#This Row],[Codice CoGe]],DettaglioSpese[Data fattura],\">=\"&I$3,DettaglioSpese[Data fattura],\"<=\"&I$4)+SUMIFS(Altro[Importo assegno],Altro[Codice CoGe],RiepilogoSpeseMensili[[#This Row],[Codice CoGe]],Altro[Data avvio richiesta assegno],\">=\"&DATEVALUE(\" 1 \"&RiepilogoSpeseMensili[[#Headers],[Giugno]]&_ANNO),Altro[Data avvio richiesta assegno],\"<=\"&I$4)","v":{"v":0,"d":"€ 0.00"}},{"$f":"SUMIFS(DettaglioSpese[Importo assegno],DettaglioSpese[Codice CoGe],RiepilogoSpeseMensili[[#This Row],[Codice CoGe]],DettaglioSpese[Data fattura],\">=\"&J$3,DettaglioSpese[Data fattura],\"<=\"&J$4)+SUMIFS(Altro[Importo assegno],Altro[Codice CoGe],RiepilogoSpeseMensili[[#This Row],[Codice CoGe]],Altro[Data avvio richiesta assegno],\">=\"&DATEVALUE(\" 1\"&RiepilogoSpeseMensili[[#Headers],[Luglio]]&_ANNO),Altro[Data avvio richiesta assegno],\"<=\"&J$4)","v":{"v":0,"d":"€ 0.00"}},{"$f":"SUMIFS(DettaglioSpese[Importo assegno],DettaglioSpese[Codice CoGe],RiepilogoSpeseMensili[[#This Row],[Codice CoGe]],DettaglioSpese[Data fattura],\">=\"&K$3,DettaglioSpese[Data fattura],\"<=\"&K$4)+SUMIFS(Altro[Importo assegno],Altro[Codice CoGe],RiepilogoSpeseMensili[[#This Row],[Codice CoGe]],Altro[Data avvio richiesta assegno],\">=\"&DATEVALUE(\" 1 \"&RiepilogoSpeseMensili[[#Headers],[Agosto]]&_ANNO),Altro[Data avvio richiesta assegno],\"<=\"&K$4)","v":{"v":0,"d":"€ 0.00"}},{"$f":"SUMIFS(DettaglioSpese[Importo assegno],DettaglioSpese[Codice CoGe],RiepilogoSpeseMensili[[#This Row],[Codice CoGe]],DettaglioSpese[Data fattura],\">=\"&L$3,DettaglioSpese[Data fattura],\"<=\"&L$4)+SUMIFS(Altro[Importo assegno],Altro[Codice CoGe],RiepilogoSpeseMensili[[#This Row],[Codice CoGe]],Altro[Data avvio richiesta assegno],\">=\"&DATEVALUE(\" 1 \"&RiepilogoSpeseMensili[[#Headers],[Settembre]]&_ANNO),Altro[Data avvio richiesta assegno],\"<=\"&L$4)","v":{"v":0,"d":"€ 0.00"}},{"$f":"SUMIFS(DettaglioSpese[Importo assegno],DettaglioSpese[Codice CoGe],RiepilogoSpeseMensili[[#This Row],[Codice CoGe]],DettaglioSpese[Data fattura],\">=\"&M$3,DettaglioSpese[Data fattura],\"<=\"&M$4)+SUMIFS(Altro[Importo assegno],Altro[Codice CoGe],RiepilogoSpeseMensili[[#This Row],[Codice CoGe]],Altro[Data avvio richiesta assegno],\">=\"&DATEVALUE(\" 1 \"&RiepilogoSpeseMensili[[#Headers],[Ottobre]]&_ANNO),Altro[Data avvio richiesta assegno],\"<=\"&M$4)","v":{"v":0,"d":"€ 0.00"}},{"$f":"SUMIFS(DettaglioSpese[Importo assegno],DettaglioSpese[Codice CoGe],RiepilogoSpeseMensili[[#This Row],[Codice CoGe]],DettaglioSpese[Data fattura],\">=\"&N$3,DettaglioSpese[Data fattura],\"<=\"&N$4)+SUMIFS(Altro[Importo assegno],Altro[Codice CoGe],RiepilogoSpeseMensili[[#This Row],[Codice CoGe]],Altro[Data avvio richiesta assegno],\">=\"&DATEVALUE(\" 1 \"&RiepilogoSpeseMensili[[#Headers],[Novembre]]&_ANNO),Altro[Data avvio richiesta assegno],\"<=\"&N$4)","v":{"v":0,"d":"€ 0.00"}},{"$f":"SUMIFS(DettaglioSpese[Importo assegno],DettaglioSpese[Codice CoGe],RiepilogoSpeseMensili[[#This Row],[Codice CoGe]],DettaglioSpese[Data fattura],\">=\"&O$3,DettaglioSpese[Data fattura],\"<=\"&O$4)+SUMIFS(Altro[Importo assegno],Altro[Codice CoGe],RiepilogoSpeseMensili[[#This Row],[Codice CoGe]],Altro[Data avvio richiesta assegno],\">=\"&DATEVALUE(\" 1 \"&RiepilogoSpeseMensili[[#Headers],[Dicembre]]&_ANNO),Altro[Data avvio richiesta assegno],\"<=\"&O$4)","v":{"v":0,"d":"€ 0.00"}},{"$f":"SUM(RiepilogoSpeseMensili[[#This Row],[Gennaio]:[Dicembre]])","v":{"v":0,"d":"€ 0.00"}}]
[null,5000,"Materiali",{"$f":"SUMIFS(DettaglioSpese[Importo assegno],DettaglioSpese[Codice CoGe],RiepilogoSpeseMensili[[#This Row],[Codice CoGe]],DettaglioSpese[Data fattura],\">=\"&D$3,DettaglioSpese[Data fattura],\"<=\"&D$4)+SUMIFS(Altro[Importo assegno],Altro[Codice CoGe],RiepilogoSpeseMensili[[#This Row],[Codice CoGe]],Altro[Data avvio richiesta assegno],\">=\"&DATEVALUE(\" 1 \"&RiepilogoSpeseMensili[[#Headers],[Gennaio]]&_ANNO),Altro[Data avvio richiesta assegno],\"<=\"&D$4)","v":{"v":0,"d":"€ 0.00"}},{"$f":"SUMIFS(DettaglioSpese[Importo assegno],DettaglioSpese[Codice CoGe],RiepilogoSpeseMensili[[#This Row],[Codice CoGe]],DettaglioSpese[Data fattura],\">=\"&E$3,DettaglioSpese[Data fattura],\"<=\"&E$4)+SUMIFS(Altro[Importo assegno],Altro[Codice CoGe],RiepilogoSpeseMensili[[#This Row],[Codice CoGe]],Altro[Data avvio richiesta assegno],\">=\"&DATEVALUE(\" 1 \"&RiepilogoSpeseMensili[[#Headers],[Febbraio]]&_ANNO),Altro[Data avvio richiesta assegno],\"<=\"&E$4)","v":{"v":0,"d":"€ 0.00"}},{"$f":"SUMIFS(DettaglioSpese[Importo assegno],DettaglioSpese[Codice CoGe],RiepilogoSpeseMensili[[#This Row],[Codice CoGe]],DettaglioSpese[Data fattura],\">=\"&F$3,DettaglioSpese[Data fattura],\"<=\"&F$4)+SUMIFS(Altro[Importo assegno],Altro[Codice CoGe],RiepilogoSpeseMensili[[#This Row],[Codice CoGe]],Altro[Data avvio richiesta assegno],\">=\"&DATEVALUE(\" 1 \"&RiepilogoSpeseMensili[[#Headers],[Marzo]]&_ANNO),Altro[Data avvio richiesta assegno],\"<=\"&F$4)","v":{"v":0,"d":"€ 0.00"}},{"$f":"SUMIFS(DettaglioSpese[Importo assegno],DettaglioSpese[Codice CoGe],RiepilogoSpeseMensili[[#This Row],[Codice CoGe]],DettaglioSpese[Data fattura],\">=\"&G$3,DettaglioSpese[Data fattura],\"<=\"&G$4)+SUMIFS(Altro[Importo assegno],Altro[Codice CoGe],RiepilogoSpeseMensili[[#This Row],[Codice CoGe]],Altro[Data avvio richiesta assegno],\">=\"&DATEVALUE(\" 1 \"&RiepilogoSpeseMensili[[#Headers],[Aprile]]&_ANNO),Altro[Data avvio richiesta assegno],\"<=\"&G$4)","v":{"v":0,"d":"€ 0.00"}},{"$f":"SUMIFS(DettaglioSpese[Importo assegno],DettaglioSpese[Codice CoGe],RiepilogoSpeseMensili[[#This Row],[Codice CoGe]],DettaglioSpese[Data fattura],\">=\"&H$3,DettaglioSpese[Data fattura],\"<=\"&H$4)+SUMIFS(Altro[Importo assegno],Altro[Codice CoGe],RiepilogoSpeseMensili[[#This Row],[Codice CoGe]],Altro[Data avvio richiesta assegno],\">=\"&DATEVALUE(\" 1 \"&RiepilogoSpeseMensili[[#Headers],[Maggio]]&_ANNO),Altro[Data avvio richiesta assegno],\"<=\"&H$4)","v":{"v":0,"d":"€ 0.00"}},{"$f":"SUMIFS(DettaglioSpese[Importo assegno],DettaglioSpese[Codice CoGe],RiepilogoSpeseMensili[[#This Row],[Codice CoGe]],DettaglioSpese[Data fattura],\">=\"&I$3,DettaglioSpese[Data fattura],\"<=\"&I$4)+SUMIFS(Altro[Importo assegno],Altro[Codice CoGe],RiepilogoSpeseMensili[[#This Row],[Codice CoGe]],Altro[Data avvio richiesta assegno],\">=\"&DATEVALUE(\" 1 \"&RiepilogoSpeseMensili[[#Headers],[Giugno]]&_ANNO),Altro[Data avvio richiesta assegno],\"<=\"&I$4)","v":{"v":0,"d":"€ 0.00"}},{"$f":"SUMIFS(DettaglioSpese[Importo assegno],DettaglioSpese[Codice CoGe],RiepilogoSpeseMensili[[#This Row],[Codice CoGe]],DettaglioSpese[Data fattura],\">=\"&J$3,DettaglioSpese[Data fattura],\"<=\"&J$4)+SUMIFS(Altro[Importo assegno],Altro[Codice CoGe],RiepilogoSpeseMensili[[#This Row],[Codice CoGe]],Altro[Data avvio richiesta assegno],\">=\"&DATEVALUE(\" 1\"&RiepilogoSpeseMensili[[#Headers],[Luglio]]&_ANNO),Altro[Data avvio richiesta assegno],\"<=\"&J$4)","v":{"v":0,"d":"€ 0.00"}},{"$f":"SUMIFS(DettaglioSpese[Importo assegno],DettaglioSpese[Codice CoGe],RiepilogoSpeseMensili[[#This Row],[Codice CoGe]],DettaglioSpese[Data fattura],\">=\"&K$3,DettaglioSpese[Data fattura],\"<=\"&K$4)+SUMIFS(Altro[Importo assegno],Altro[Codice CoGe],RiepilogoSpeseMensili[[#This Row],[Codice CoGe]],Altro[Data avvio richiesta assegno],\">=\"&DATEVALUE(\" 1 \"&RiepilogoSpeseMensili[[#Headers],[Agosto]]&_ANNO),Altro[Data avvio richiesta assegno],\"<=\"&K$4)","v":{"v":0,"d":"€ 0.00"}},{"$f":"SUMIFS(DettaglioSpese[Importo assegno],DettaglioSpese[Codice CoGe],RiepilogoSpeseMensili[[#This Row],[Codice CoGe]],DettaglioSpese[Data fattura],\">=\"&L$3,DettaglioSpese[Data fattura],\"<=\"&L$4)+SUMIFS(Altro[Importo assegno],Altro[Codice CoGe],RiepilogoSpeseMensili[[#This Row],[Codice CoGe]],Altro[Data avvio richiesta assegno],\">=\"&DATEVALUE(\" 1 \"&RiepilogoSpeseMensili[[#Headers],[Settembre]]&_ANNO),Altro[Data avvio richiesta assegno],\"<=\"&L$4)","v":{"v":0,"d":"€ 0.00"}},{"$f":"SUMIFS(DettaglioSpese[Importo assegno],DettaglioSpese[Codice CoGe],RiepilogoSpeseMensili[[#This Row],[Codice CoGe]],DettaglioSpese[Data fattura],\">=\"&M$3,DettaglioSpese[Data fattura],\"<=\"&M$4)+SUMIFS(Altro[Importo assegno],Altro[Codice CoGe],RiepilogoSpeseMensili[[#This Row],[Codice CoGe]],Altro[Data avvio richiesta assegno],\">=\"&DATEVALUE(\" 1 \"&RiepilogoSpeseMensili[[#Headers],[Ottobre]]&_ANNO),Altro[Data avvio richiesta assegno],\"<=\"&M$4)","v":{"v":0,"d":"€ 0.00"}},{"$f":"SUMIFS(DettaglioSpese[Importo assegno],DettaglioSpese[Codice CoGe],RiepilogoSpeseMensili[[#This Row],[Codice CoGe]],DettaglioSpese[Data fattura],\">=\"&N$3,DettaglioSpese[Data fattura],\"<=\"&N$4)+SUMIFS(Altro[Importo assegno],Altro[Codice CoGe],RiepilogoSpeseMensili[[#This Row],[Codice CoGe]],Altro[Data avvio richiesta assegno],\">=\"&DATEVALUE(\" 1 \"&RiepilogoSpeseMensili[[#Headers],[Novembre]]&_ANNO),Altro[Data avvio richiesta assegno],\"<=\"&N$4)","v":{"v":0,"d":"€ 0.00"}},{"$f":"SUMIFS(DettaglioSpese[Importo assegno],DettaglioSpese[Codice CoGe],RiepilogoSpeseMensili[[#This Row],[Codice CoGe]],DettaglioSpese[Data fattura],\">=\"&O$3,DettaglioSpese[Data fattura],\"<=\"&O$4)+SUMIFS(Altro[Importo assegno],Altro[Codice CoGe],RiepilogoSpeseMensili[[#This Row],[Codice CoGe]],Altro[Data avvio richiesta assegno],\">=\"&DATEVALUE(\" 1 \"&RiepilogoSpeseMensili[[#Headers],[Dicembre]]&_ANNO),Altro[Data avvio richiesta assegno],\"<=\"&O$4)","v":{"v":0,"d":"€ 0.00"}},{"$f":"SUM(RiepilogoSpeseMensili[[#This Row],[Gennaio]:[Dicembre]])","v":{"v":0,"d":"€ 0.00"}}]
[null,6000,"Spese client",{"$f":"SUMIFS(DettaglioSpese[Importo assegno],DettaglioSpese[Codice CoGe],RiepilogoSpeseMensili[[#This Row],[Codice CoGe]],DettaglioSpese[Data fattura],\">=\"&D$3,DettaglioSpese[Data fattura],\"<=\"&D$4)+SUMIFS(Altro[Importo assegno],Altro[Codice CoGe],RiepilogoSpeseMensili[[#This Row],[Codice CoGe]],Altro[Data avvio richiesta assegno],\">=\"&DATEVALUE(\" 1 \"&RiepilogoSpeseMensili[[#Headers],[Gennaio]]&_ANNO),Altro[Data avvio richiesta assegno],\"<=\"&D$4)","v":{"v":0,"d":"€ 0.00"}},{"$f":"SUMIFS(DettaglioSpese[Importo assegno],DettaglioSpese[Codice CoGe],RiepilogoSpeseMensili[[#This Row],[Codice CoGe]],DettaglioSpese[Data fattura],\">=\"&E$3,DettaglioSpese[Data fattura],\"<=\"&E$4)+SUMIFS(Altro[Importo assegno],Altro[Codice CoGe],RiepilogoSpeseMensili[[#This Row],[Codice CoGe]],Altro[Data avvio richiesta assegno],\">=\"&DATEVALUE(\" 1 \"&RiepilogoSpeseMensili[[#Headers],[Febbraio]]&_ANNO),Altro[Data avvio richiesta assegno],\"<=\"&E$4)","v":{"v":0,"d":"€ 0.00"}},{"$f":"SUMIFS(DettaglioSpese[Importo assegno],DettaglioSpese[Codice CoGe],RiepilogoSpeseMensili[[#This Row],[Codice CoGe]],DettaglioSpese[Data fattura],\">=\"&F$3,DettaglioSpese[Data fattura],\"<=\"&F$4)+SUMIFS(Altro[Importo assegno],Altro[Codice CoGe],RiepilogoSpeseMensili[[#This Row],[Codice CoGe]],Altro[Data avvio richiesta assegno],\">=\"&DATEVALUE(\" 1 \"&RiepilogoSpeseMensili[[#Headers],[Marzo]]&_ANNO),Altro[Data avvio richiesta assegno],\"<=\"&F$4)","v":{"v":0,"d":"€ 0.00"}},{"$f":"SUMIFS(DettaglioSpese[Importo assegno],DettaglioSpese[Codice CoGe],RiepilogoSpeseMensili[[#This Row],[Codice CoGe]],DettaglioSpese[Data fattura],\">=\"&G$3,DettaglioSpese[Data fattura],\"<=\"&G$4)+SUMIFS(Altro[Importo assegno],Altro[Codice CoGe],RiepilogoSpeseMensili[[#This Row],[Codice CoGe]],Altro[Data avvio richiesta assegno],\">=\"&DATEVALUE(\" 1 \"&RiepilogoSpeseMensili[[#Headers],[Aprile]]&_ANNO),Altro[Data avvio richiesta assegno],\"<=\"&G$4)","v":{"v":0,"d":"€ 0.00"}},{"$f":"SUMIFS(DettaglioSpese[Importo assegno],DettaglioSpese[Codice CoGe],RiepilogoSpeseMensili[[#This Row],[Codice CoGe]],DettaglioSpese[Data fattura],\">=\"&H$3,DettaglioSpese[Data fattura],\"<=\"&H$4)+SUMIFS(Altro[Importo assegno],Altro[Codice CoGe],RiepilogoSpeseMensili[[#This Row],[Codice CoGe]],Altro[Data avvio richiesta assegno],\">=\"&DATEVALUE(\" 1 \"&RiepilogoSpeseMensili[[#Headers],[Maggio]]&_ANNO),Altro[Data avvio richiesta assegno],\"<=\"&H$4)","v":{"v":0,"d":"€ 0.00"}},{"$f":"SUMIFS(DettaglioSpese[Importo assegno],DettaglioSpese[Codice CoGe],RiepilogoSpeseMensili[[#This Row],[Codice CoGe]],DettaglioSpese[Data fattura],\">=\"&I$3,DettaglioSpese[Data fattura],\"<=\"&I$4)+SUMIFS(Altro[Importo assegno],Altro[Codice CoGe],RiepilogoSpeseMensili[[#This Row],[Codice CoGe]],Altro[Data avvio richiesta assegno],\">=\"&DATEVALUE(\" 1 \"&RiepilogoSpeseMensili[[#Headers],[Giugno]]&_ANNO),Altro[Data avvio richiesta assegno],\"<=\"&I$4)","v":{"v":0,"d":"€ 0.00"}},{"$f":"SUMIFS(DettaglioSpese[Importo assegno],DettaglioSpese[Codice CoGe],RiepilogoSpeseMensili[[#This Row],[Codice CoGe]],DettaglioSpese[Data fattura],\">=\"&J$3,DettaglioSpese[Data fattura],\"<=\"&J$4)+SUMIFS(Altro[Importo assegno],Altro[Codice CoGe],RiepilogoSpeseMensili[[#This Row],[Codice CoGe]],Altro[Data avvio richiesta assegno],\">=\"&DATEVALUE(\" 1\"&RiepilogoSpeseMensili[[#Headers],[Luglio]]&_ANNO),Altro[Data avvio richiesta assegno],\"<=\"&J$4)","v":{"v":0,"d":"€ 0.00"}},{"$f":"SUMIFS(DettaglioSpese[Importo assegno],DettaglioSpese[Codice CoGe],RiepilogoSpeseMensili[[#This Row],[Codice CoGe]],DettaglioSpese[Data fattura],\">=\"&K$3,DettaglioSpese[Data fattura],\"<=\"&K$4)+SUMIFS(Altro[Importo assegno],Altro[Codice CoGe],RiepilogoSpeseMensili[[#This Row],[Codice CoGe]],Altro[Data avvio richiesta assegno],\">=\"&DATEVALUE(\" 1 \"&RiepilogoSpeseMensili[[#Headers],[Agosto]]&_ANNO),Altro[Data avvio richiesta assegno],\"<=\"&K$4)","v":{"v":0,"d":"€ 0.00"}},{"$f":"SUMIFS(DettaglioSpese[Importo assegno],DettaglioSpese[Codice CoGe],RiepilogoSpeseMensili[[#This Row],[Codice CoGe]],DettaglioSpese[Data fattura],\">=\"&L$3,DettaglioSpese[Data fattura],\"<=\"&L$4)+SUMIFS(Altro[Importo assegno],Altro[Codice CoGe],RiepilogoSpeseMensili[[#This Row],[Codice CoGe]],Altro[Data avvio richiesta assegno],\">=\"&DATEVALUE(\" 1 \"&RiepilogoSpeseMensili[[#Headers],[Settembre]]&_ANNO),Altro[Data avvio richiesta assegno],\"<=\"&L$4)","v":{"v":0,"d":"€ 0.00"}},{"$f":"SUMIFS(DettaglioSpese[Importo assegno],DettaglioSpese[Codice CoGe],RiepilogoSpeseMensili[[#This Row],[Codice CoGe]],DettaglioSpese[Data fattura],\">=\"&M$3,DettaglioSpese[Data fattura],\"<=\"&M$4)+SUMIFS(Altro[Importo assegno],Altro[Codice CoGe],RiepilogoSpeseMensili[[#This Row],[Codice CoGe]],Altro[Data avvio richiesta assegno],\">=\"&DATEVALUE(\" 1 \"&RiepilogoSpeseMensili[[#Headers],[Ottobre]]&_ANNO),Altro[Data avvio richiesta assegno],\"<=\"&M$4)","v":{"v":0,"d":"€ 0.00"}},{"$f":"SUMIFS(DettaglioSpese[Importo assegno],DettaglioSpese[Codice CoGe],RiepilogoSpeseMensili[[#This Row],[Codice CoGe]],DettaglioSpese[Data fattura],\">=\"&N$3,DettaglioSpese[Data fattura],\"<=\"&N$4)+SUMIFS(Altro[Importo assegno],Altro[Codice CoGe],RiepilogoSpeseMensili[[#This Row],[Codice CoGe]],Altro[Data avvio richiesta assegno],\">=\"&DATEVALUE(\" 1 \"&RiepilogoSpeseMensili[[#Headers],[Novembre]]&_ANNO),Altro[Data avvio richiesta assegno],\"<=\"&N$4)","v":{"v":0,"d":"€ 0.00"}},{"$f":"SUMIFS(DettaglioSpese[Importo assegno],DettaglioSpese[Codice CoGe],RiepilogoSpeseMensili[[#This Row],[Codice CoGe]],DettaglioSpese[Data fattura],\">=\"&O$3,DettaglioSpese[Data fattura],\"<=\"&O$4)+SUMIFS(Altro[Importo assegno],Altro[Codice CoGe],RiepilogoSpeseMensili[[#This Row],[Codice CoGe]],Altro[Data avvio richiesta assegno],\">=\"&DATEVALUE(\" 1 \"&RiepilogoSpeseMensili[[#Headers],[Dicembre]]&_ANNO),Altro[Data avvio richiesta assegno],\"<=\"&O$4)","v":{"v":0,"d":"€ 0.00"}},{"$f":"SUM(RiepilogoSpeseMensili[[#This Row],[Gennaio]:[Dicembre]])","v":{"v":0,"d":"€ 0.00"}}]
[null,7000,"Computer",{"$f":"SUMIFS(DettaglioSpese[Importo assegno],DettaglioSpese[Codice CoGe],RiepilogoSpeseMensili[[#This Row],[Codice CoGe]],DettaglioSpese[Data fattura],\">=\"&D$3,DettaglioSpese[Data fattura],\"<=\"&D$4)+SUMIFS(Altro[Importo assegno],Altro[Codice CoGe],RiepilogoSpeseMensili[[#This Row],[Codice CoGe]],Altro[Data avvio richiesta assegno],\">=\"&DATEVALUE(\" 1 \"&RiepilogoSpeseMensili[[#Headers],[Gennaio]]&_ANNO),Altro[Data avvio richiesta assegno],\"<=\"&D$4)","v":{"v":0,"d":"€ 0.00"}},{"$f":"SUMIFS(DettaglioSpese[Importo assegno],DettaglioSpese[Codice CoGe],RiepilogoSpeseMensili[[#This Row],[Codice CoGe]],DettaglioSpese[Data fattura],\">=\"&E$3,DettaglioSpese[Data fattura],\"<=\"&E$4)+SUMIFS(Altro[Importo assegno],Altro[Codice CoGe],RiepilogoSpeseMensili[[#This Row],[Codice CoGe]],Altro[Data avvio richiesta assegno],\">=\"&DATEVALUE(\" 1 \"&RiepilogoSpeseMensili[[#Headers],[Febbraio]]&_ANNO),Altro[Data avvio richiesta assegno],\"<=\"&E$4)","v":{"v":0,"d":"€ 0.00"}},{"$f":"SUMIFS(DettaglioSpese[Importo assegno],DettaglioSpese[Codice CoGe],RiepilogoSpeseMensili[[#This Row],[Codice CoGe]],DettaglioSpese[Data fattura],\">=\"&F$3,DettaglioSpese[Data fattura],\"<=\"&F$4)+SUMIFS(Altro[Importo assegno],Altro[Codice CoGe],RiepilogoSpeseMensili[[#This Row],[Codice CoGe]],Altro[Data avvio richiesta assegno],\">=\"&DATEVALUE(\" 1 \"&RiepilogoSpeseMensili[[#Headers],[Marzo]]&_ANNO),Altro[Data avvio richiesta assegno],\"<=\"&F$4)","v":{"v":0,"d":"€ 0.00"}},{"$f":"SUMIFS(DettaglioSpese[Importo assegno],DettaglioSpese[Codice CoGe],RiepilogoSpeseMensili[[#This Row],[Codice CoGe]],DettaglioSpese[Data fattura],\">=\"&G$3,DettaglioSpese[Data fattura],\"<=\"&G$4)+SUMIFS(Altro[Importo assegno],Altro[Codice CoGe],RiepilogoSpeseMensili[[#This Row],[Codice CoGe]],Altro[Data avvio richiesta assegno],\">=\"&DATEVALUE(\" 1 \"&RiepilogoSpeseMensili[[#Headers],[Aprile]]&_ANNO),Altro[Data avvio richiesta assegno],\"<=\"&G$4)","v":{"v":0,"d":"€ 0.00"}},{"$f":"SUMIFS(DettaglioSpese[Importo assegno],DettaglioSpese[Codice CoGe],RiepilogoSpeseMensili[[#This Row],[Codice CoGe]],DettaglioSpese[Data fattura],\">=\"&H$3,DettaglioSpese[Data fattura],\"<=\"&H$4)+SUMIFS(Altro[Importo assegno],Altro[Codice CoGe],RiepilogoSpeseMensili[[#This Row],[Codice CoGe]],Altro[Data avvio richiesta assegno],\">=\"&DATEVALUE(\" 1 \"&RiepilogoSpeseMensili[[#Headers],[Maggio]]&_ANNO),Altro[Data avvio richiesta assegno],\"<=\"&H$4)","v":{"v":0,"d":"€ 0.00"}},{"$f":"SUMIFS(DettaglioSpese[Importo assegno],DettaglioSpese[Codice CoGe],RiepilogoSpeseMensili[[#This Row],[Codice CoGe]],DettaglioSpese[Data fattura],\">=\"&I$3,DettaglioSpese[Data fattura],\"<=\"&I$4)+SUMIFS(Altro[Importo assegno],Altro[Codice CoGe],RiepilogoSpeseMensili[[#This Row],[Codice CoGe]],Altro[Data avvio richiesta assegno],\">=\"&DATEVALUE(\" 1 \"&RiepilogoSpeseMensili[[#Headers],[Giugno]]&_ANNO),Altro[Data avvio richiesta assegno],\"<=\"&I$4)","v":{"v":0,"d":"€ 0.00"}},{"$f":"SUMIFS(DettaglioSpese[Importo assegno],DettaglioSpese[Codice CoGe],RiepilogoSpeseMensili[[#This Row],[Codice CoGe]],DettaglioSpese[Data fattura],\">=\"&J$3,DettaglioSpese[Data fattura],\"<=\"&J$4)+SUMIFS(Altro[Importo assegno],Altro[Codice CoGe],RiepilogoSpeseMensili[[#This Row],[Codice CoGe]],Altro[Data avvio richiesta assegno],\">=\"&DATEVALUE(\" 1\"&RiepilogoSpeseMensili[[#Headers],[Luglio]]&_ANNO),Altro[Data avvio richiesta assegno],\"<=\"&J$4)","v":{"v":0,"d":"€ 0.00"}},{"$f":"SUMIFS(DettaglioSpese[Importo assegno],DettaglioSpese[Codice CoGe],RiepilogoSpeseMensili[[#This Row],[Codice CoGe]],DettaglioSpese[Data fattura],\">=\"&K$3,DettaglioSpese[Data fattura],\"<=\"&K$4)+SUMIFS(Altro[Importo assegno],Altro[Codice CoGe],RiepilogoSpeseMensili[[#This Row],[Codice CoGe]],Altro[Data avvio richiesta assegno],\">=\"&DATEVALUE(\" 1 \"&RiepilogoSpeseMensili[[#Headers],[Agosto]]&_ANNO),Altro[Data avvio richiesta assegno],\"<=\"&K$4)","v":{"v":0,"d":"€ 0.00"}},{"$f":"SUMIFS(DettaglioSpese[Importo assegno],DettaglioSpese[Codice CoGe],RiepilogoSpeseMensili[[#This Row],[Codice CoGe]],DettaglioSpese[Data fattura],\">=\"&L$3,DettaglioSpese[Data fattura],\"<=\"&L$4)+SUMIFS(Altro[Importo assegno],Altro[Codice CoGe],RiepilogoSpeseMensili[[#This Row],[Codice CoGe]],Altro[Data avvio richiesta assegno],\">=\"&DATEVALUE(\" 1 \"&RiepilogoSpeseMensili[[#Headers],[Settembre]]&_ANNO),Altro[Data avvio richiesta assegno],\"<=\"&L$4)","v":{"v":0,"d":"€ 0.00"}},{"$f":"SUMIFS(DettaglioSpese[Importo assegno],DettaglioSpese[Codice CoGe],RiepilogoSpeseMensili[[#This Row],[Codice CoGe]],DettaglioSpese[Data fattura],\">=\"&M$3,DettaglioSpese[Data fattura],\"<=\"&M$4)+SUMIFS(Altro[Importo assegno],Altro[Codice CoGe],RiepilogoSpeseMensili[[#This Row],[Codice CoGe]],Altro[Data avvio richiesta assegno],\">=\"&DATEVALUE(\" 1 \"&RiepilogoSpeseMensili[[#Headers],[Ottobre]]&_ANNO),Altro[Data avvio richiesta assegno],\"<=\"&M$4)","v":{"v":0,"d":"€ 0.00"}},{"$f":"SUMIFS(DettaglioSpese[Importo assegno],DettaglioSpese[Codice CoGe],RiepilogoSpeseMensili[[#This Row],[Codice CoGe]],DettaglioSpese[Data fattura],\">=\"&N$3,DettaglioSpese[Data fattura],\"<=\"&N$4)+SUMIFS(Altro[Importo assegno],Altro[Codice CoGe],RiepilogoSpeseMensili[[#This Row],[Codice CoGe]],Altro[Data avvio richiesta assegno],\">=\"&DATEVALUE(\" 1 \"&RiepilogoSpeseMensili[[#Headers],[Novembre]]&_ANNO),Altro[Data avvio richiesta assegno],\"<=\"&N$4)","v":{"v":0,"d":"€ 0.00"}},{"$f":"SUMIFS(DettaglioSpese[Importo assegno],DettaglioSpese[Codice CoGe],RiepilogoSpeseMensili[[#This Row],[Codice CoGe]],DettaglioSpese[Data fattura],\">=\"&O$3,DettaglioSpese[Data fattura],\"<=\"&O$4)+SUMIFS(Altro[Importo assegno],Altro[Codice CoGe],RiepilogoSpeseMensili[[#This Row],[Codice CoGe]],Altro[Data avvio richiesta assegno],\">=\"&DATEVALUE(\" 1 \"&RiepilogoSpeseMensili[[#Headers],[Dicembre]]&_ANNO),Altro[Data avvio richiesta assegno],\"<=\"&O$4)","v":{"v":0,"d":"€ 0.00"}},{"$f":"SUM(RiepilogoSpeseMensili[[#This Row],[Gennaio]:[Dicembre]])","v":{"v":0,"d":"€ 0.00"}}]
[null,8000,"Copertura sanitaria",{"$f":"SUMIFS(DettaglioSpese[Importo assegno],DettaglioSpese[Codice CoGe],RiepilogoSpeseMensili[[#This Row],[Codice CoGe]],DettaglioSpese[Data fattura],\">=\"&D$3,DettaglioSpese[Data fattura],\"<=\"&D$4)+SUMIFS(Altro[Importo assegno],Altro[Codice CoGe],RiepilogoSpeseMensili[[#This Row],[Codice CoGe]],Altro[Data avvio richiesta assegno],\">=\"&DATEVALUE(\" 1 \"&RiepilogoSpeseMensili[[#Headers],[Gennaio]]&_ANNO),Altro[Data avvio richiesta assegno],\"<=\"&D$4)","v":{"v":0,"d":"€ 0.00"}},{"$f":"SUMIFS(DettaglioSpese[Importo assegno],DettaglioSpese[Codice CoGe],RiepilogoSpeseMensili[[#This Row],[Codice CoGe]],DettaglioSpese[Data fattura],\">=\"&E$3,DettaglioSpese[Data fattura],\"<=\"&E$4)+SUMIFS(Altro[Importo assegno],Altro[Codice CoGe],RiepilogoSpeseMensili[[#This Row],[Codice CoGe]],Altro[Data avvio richiesta assegno],\">=\"&DATEVALUE(\" 1 \"&RiepilogoSpeseMensili[[#Headers],[Febbraio]]&_ANNO),Altro[Data avvio richiesta assegno],\"<=\"&E$4)","v":{"v":0,"d":"€ 0.00"}},{"$f":"SUMIFS(DettaglioSpese[Importo assegno],DettaglioSpese[Codice CoGe],RiepilogoSpeseMensili[[#This Row],[Codice CoGe]],DettaglioSpese[Data fattura],\">=\"&F$3,DettaglioSpese[Data fattura],\"<=\"&F$4)+SUMIFS(Altro[Importo assegno],Altro[Codice CoGe],RiepilogoSpeseMensili[[#This Row],[Codice CoGe]],Altro[Data avvio richiesta assegno],\">=\"&DATEVALUE(\" 1 \"&RiepilogoSpeseMensili[[#Headers],[Marzo]]&_ANNO),Altro[Data avvio richiesta assegno],\"<=\"&F$4)","v":{"v":0,"d":"€ 0.00"}},{"$f":"SUMIFS(DettaglioSpese[Importo assegno],DettaglioSpese[Codice CoGe],RiepilogoSpeseMensili[[#This Row],[Codice CoGe]],DettaglioSpese[Data fattura],\">=\"&G$3,DettaglioSpese[Data fattura],\"<=\"&G$4)+SUMIFS(Altro[Importo assegno],Altro[Codice CoGe],RiepilogoSpeseMensili[[#This Row],[Codice CoGe]],Altro[Data avvio richiesta assegno],\">=\"&DATEVALUE(\" 1 \"&RiepilogoSpeseMensili[[#Headers],[Aprile]]&_ANNO),Altro[Data avvio richiesta assegno],\"<=\"&G$4)","v":{"v":0,"d":"€ 0.00"}},{"$f":"SUMIFS(DettaglioSpese[Importo assegno],DettaglioSpese[Codice CoGe],RiepilogoSpeseMensili[[#This Row],[Codice CoGe]],DettaglioSpese[Data fattura],\">=\"&H$3,DettaglioSpese[Data fattura],\"<=\"&H$4)+SUMIFS(Altro[Importo assegno],Altro[Codice CoGe],RiepilogoSpeseMensili[[#This Row],[Codice CoGe]],Altro[Data avvio richiesta assegno],\">=\"&DATEVALUE(\" 1 \"&RiepilogoSpeseMensili[[#Headers],[Maggio]]&_ANNO),Altro[Data avvio richiesta assegno],\"<=\"&H$4)","v":{"v":0,"d":"€ 0.00"}},{"$f":"SUMIFS(DettaglioSpese[Importo assegno],DettaglioSpese[Codice CoGe],RiepilogoSpeseMensili[[#This Row],[Codice CoGe]],DettaglioSpese[Data fattura],\">=\"&I$3,DettaglioSpese[Data fattura],\"<=\"&I$4)+SUMIFS(Altro[Importo assegno],Altro[Codice CoGe],RiepilogoSpeseMensili[[#This Row],[Codice CoGe]],Altro[Data avvio richiesta assegno],\">=\"&DATEVALUE(\" 1 \"&RiepilogoSpeseMensili[[#Headers],[Giugno]]&_ANNO),Altro[Data avvio richiesta assegno],\"<=\"&I$4)","v":{"v":0,"d":"€ 0.00"}},{"$f":"SUMIFS(DettaglioSpese[Importo assegno],DettaglioSpese[Codice CoGe],RiepilogoSpeseMensili[[#This Row],[Codice CoGe]],DettaglioSpese[Data fattura],\">=\"&J$3,DettaglioSpese[Data fattura],\"<=\"&J$4)+SUMIFS(Altro[Importo assegno],Altro[Codice CoGe],RiepilogoSpeseMensili[[#This Row],[Codice CoGe]],Altro[Data avvio richiesta assegno],\">=\"&DATEVALUE(\" 1\"&RiepilogoSpeseMensili[[#Headers],[Luglio]]&_ANNO),Altro[Data avvio richiesta assegno],\"<=\"&J$4)","v":{"v":0,"d":"€ 0.00"}},{"$f":"SUMIFS(DettaglioSpese[Importo assegno],DettaglioSpese[Codice CoGe],RiepilogoSpeseMensili[[#This Row],[Codice CoGe]],DettaglioSpese[Data fattura],\">=\"&K$3,DettaglioSpese[Data fattura],\"<=\"&K$4)+SUMIFS(Altro[Importo assegno],Altro[Codice CoGe],RiepilogoSpeseMensili[[#This Row],[Codice CoGe]],Altro[Data avvio richiesta assegno],\">=\"&DATEVALUE(\" 1 \"&RiepilogoSpeseMensili[[#Headers],[Agosto]]&_ANNO),Altro[Data avvio richiesta assegno],\"<=\"&K$4)","v":{"v":0,"d":"€ 0.00"}},{"$f":"SUMIFS(DettaglioSpese[Importo assegno],DettaglioSpese[Codice CoGe],RiepilogoSpeseMensili[[#This Row],[Codice CoGe]],DettaglioSpese[Data fattura],\">=\"&L$3,DettaglioSpese[Data fattura],\"<=\"&L$4)+SUMIFS(Altro[Importo assegno],Altro[Codice CoGe],RiepilogoSpeseMensili[[#This Row],[Codice CoGe]],Altro[Data avvio richiesta assegno],\">=\"&DATEVALUE(\" 1 \"&RiepilogoSpeseMensili[[#Headers],[Settembre]]&_ANNO),Altro[Data avvio richiesta assegno],\"<=\"&L$4)","v":{"v":0,"d":"€ 0.00"}},{"$f":"SUMIFS(DettaglioSpese[Importo assegno],DettaglioSpese[Codice CoGe],RiepilogoSpeseMensili[[#This Row],[Codice CoGe]],DettaglioSpese[Data fattura],\">=\"&M$3,DettaglioSpese[Data fattura],\"<=\"&M$4)+SUMIFS(Altro[Importo assegno],Altro[Codice CoGe],RiepilogoSpeseMensili[[#This Row],[Codice CoGe]],Altro[Data avvio richiesta assegno],\">=\"&DATEVALUE(\" 1 \"&RiepilogoSpeseMensili[[#Headers],[Ottobre]]&_ANNO),Altro[Data avvio richiesta assegno],\"<=\"&M$4)","v":{"v":0,"d":"€ 0.00"}},{"$f":"SUMIFS(DettaglioSpese[Importo assegno],DettaglioSpese[Codice CoGe],RiepilogoSpeseMensili[[#This Row],[Codice CoGe]],DettaglioSpese[Data fattura],\">=\"&N$3,DettaglioSpese[Data fattura],\"<=\"&N$4)+SUMIFS(Altro[Importo assegno],Altro[Codice CoGe],RiepilogoSpeseMensili[[#This Row],[Codice CoGe]],Altro[Data avvio richiesta assegno],\">=\"&DATEVALUE(\" 1 \"&RiepilogoSpeseMensili[[#Headers],[Novembre]]&_ANNO),Altro[Data avvio richiesta assegno],\"<=\"&N$4)","v":{"v":0,"d":"€ 0.00"}},{"$f":"SUMIFS(DettaglioSpese[Importo assegno],DettaglioSpese[Codice CoGe],RiepilogoSpeseMensili[[#This Row],[Codice CoGe]],DettaglioSpese[Data fattura],\">=\"&O$3,DettaglioSpese[Data fattura],\"<=\"&O$4)+SUMIFS(Altro[Importo assegno],Altro[Codice CoGe],RiepilogoSpeseMensili[[#This Row],[Codice CoGe]],Altro[Data avvio richiesta assegno],\">=\"&DATEVALUE(\" 1 \"&RiepilogoSpeseMensili[[#Headers],[Dicembre]]&_ANNO),Altro[Data avvio richiesta assegno],\"<=\"&O$4)","v":{"v":0,"d":"€ 0.00"}},{"$f":"SUM(RiepilogoSpeseMensili[[#This Row],[Gennaio]:[Dicembre]])","v":{"v":0,"d":"€ 0.00"}}]
[null,9000,"Costi edificio",{"$f":"SUMIFS(DettaglioSpese[Importo assegno],DettaglioSpese[Codice CoGe],RiepilogoSpeseMensili[[#This Row],[Codice CoGe]],DettaglioSpese[Data fattura],\">=\"&D$3,DettaglioSpese[Data fattura],\"<=\"&D$4)+SUMIFS(Altro[Importo assegno],Altro[Codice CoGe],RiepilogoSpeseMensili[[#This Row],[Codice CoGe]],Altro[Data avvio richiesta assegno],\">=\"&DATEVALUE(\" 1 \"&RiepilogoSpeseMensili[[#Headers],[Gennaio]]&_ANNO),Altro[Data avvio richiesta assegno],\"<=\"&D$4)","v":{"v":0,"d":"€ 0.00"}},{"$f":"SUMIFS(DettaglioSpese[Importo assegno],DettaglioSpese[Codice CoGe],RiepilogoSpeseMensili[[#This Row],[Codice CoGe]],DettaglioSpese[Data fattura],\">=\"&E$3,DettaglioSpese[Data fattura],\"<=\"&E$4)+SUMIFS(Altro[Importo assegno],Altro[Codice CoGe],RiepilogoSpeseMensili[[#This Row],[Codice CoGe]],Altro[Data avvio richiesta assegno],\">=\"&DATEVALUE(\" 1 \"&RiepilogoSpeseMensili[[#Headers],[Febbraio]]&_ANNO),Altro[Data avvio richiesta assegno],\"<=\"&E$4)","v":{"v":0,"d":"€ 0.00"}},{"$f":"SUMIFS(DettaglioSpese[Importo assegno],DettaglioSpese[Codice CoGe],RiepilogoSpeseMensili[[#This Row],[Codice CoGe]],DettaglioSpese[Data fattura],\">=\"&F$3,DettaglioSpese[Data fattura],\"<=\"&F$4)+SUMIFS(Altro[Importo assegno],Altro[Codice CoGe],RiepilogoSpeseMensili[[#This Row],[Codice CoGe]],Altro[Data avvio richiesta assegno],\">=\"&DATEVALUE(\" 1 \"&RiepilogoSpeseMensili[[#Headers],[Marzo]]&_ANNO),Altro[Data avvio richiesta assegno],\"<=\"&F$4)","v":{"v":0,"d":"€ 0.00"}},{"$f":"SUMIFS(DettaglioSpese[Importo assegno],DettaglioSpese[Codice CoGe],RiepilogoSpeseMensili[[#This Row],[Codice CoGe]],DettaglioSpese[Data fattura],\">=\"&G$3,DettaglioSpese[Data fattura],\"<=\"&G$4)+SUMIFS(Altro[Importo assegno],Altro[Codice CoGe],RiepilogoSpeseMensili[[#This Row],[Codice CoGe]],Altro[Data avvio richiesta assegno],\">=\"&DATEVALUE(\" 1 \"&RiepilogoSpeseMensili[[#Headers],[Aprile]]&_ANNO),Altro[Data avvio richiesta assegno],\"<=\"&G$4)","v":{"v":0,"d":"€ 0.00"}},{"$f":"SUMIFS(DettaglioSpese[Importo assegno],DettaglioSpese[Codice CoGe],RiepilogoSpeseMensili[[#This Row],[Codice CoGe]],DettaglioSpese[Data fattura],\">=\"&H$3,DettaglioSpese[Data fattura],\"<=\"&H$4)+SUMIFS(Altro[Importo assegno],Altro[Codice CoGe],RiepilogoSpeseMensili[[#This Row],[Codice CoGe]],Altro[Data avvio richiesta assegno],\">=\"&DATEVALUE(\" 1 \"&RiepilogoSpeseMensili[[#Headers],[Maggio]]&_ANNO),Altro[Data avvio richiesta assegno],\"<=\"&H$4)","v":{"v":0,"d":"€ 0.00"}},{"$f":"SUMIFS(DettaglioSpese[Importo assegno],DettaglioSpese[Codice CoGe],RiepilogoSpeseMensili[[#This Row],[Codice CoGe]],DettaglioSpese[Data fattura],\">=\"&I$3,DettaglioSpese[Data fattura],\"<=\"&I$4)+SUMIFS(Altro[Importo assegno],Altro[Codice CoGe],RiepilogoSpeseMensili[[#This Row],[Codice CoGe]],Altro[Data avvio richiesta assegno],\">=\"&DATEVALUE(\" 1 \"&RiepilogoSpeseMensili[[#Headers],[Giugno]]&_ANNO),Altro[Data avvio richiesta assegno],\"<=\"&I$4)","v":{"v":0,"d":"€ 0.00"}},{"$f":"SUMIFS(DettaglioSpese[Importo assegno],DettaglioSpese[Codice CoGe],RiepilogoSpeseMensili[[#This Row],[Codice CoGe]],DettaglioSpese[Data fattura],\">=\"&J$3,DettaglioSpese[Data fattura],\"<=\"&J$4)+SUMIFS(Altro[Importo assegno],Altro[Codice CoGe],RiepilogoSpeseMensili[[#This Row],[Codice CoGe]],Altro[Data avvio richiesta assegno],\">=\"&DATEVALUE(\" 1\"&RiepilogoSpeseMensili[[#Headers],[Luglio]]&_ANNO),Altro[Data avvio richiesta assegno],\"<=\"&J$4)","v":{"v":0,"d":"€ 0.00"}},{"$f":"SUMIFS(DettaglioSpese[Importo assegno],DettaglioSpese[Codice CoGe],RiepilogoSpeseMensili[[#This Row],[Codice CoGe]],DettaglioSpese[Data fattura],\">=\"&K$3,DettaglioSpese[Data fattura],\"<=\"&K$4)+SUMIFS(Altro[Importo assegno],Altro[Codice CoGe],RiepilogoSpeseMensili[[#This Row],[Codice CoGe]],Altro[Data avvio richiesta assegno],\">=\"&DATEVALUE(\" 1 \"&RiepilogoSpeseMensili[[#Headers],[Agosto]]&_ANNO),Altro[Data avvio richiesta assegno],\"<=\"&K$4)","v":{"v":0,"d":"€ 0.00"}},{"$f":"SUMIFS(DettaglioSpese[Importo assegno],DettaglioSpese[Codice CoGe],RiepilogoSpeseMensili[[#This Row],[Codice CoGe]],DettaglioSpese[Data fattura],\">=\"&L$3,DettaglioSpese[Data fattura],\"<=\"&L$4)+SUMIFS(Altro[Importo assegno],Altro[Codice CoGe],RiepilogoSpeseMensili[[#This Row],[Codice CoGe]],Altro[Data avvio richiesta assegno],\">=\"&DATEVALUE(\" 1 \"&RiepilogoSpeseMensili[[#Headers],[Settembre]]&_ANNO),Altro[Data avvio richiesta assegno],\"<=\"&L$4)","v":{"v":0,"d":"€ 0.00"}},{"$f":"SUMIFS(DettaglioSpese[Importo assegno],DettaglioSpese[Codice CoGe],RiepilogoSpeseMensili[[#This Row],[Codice CoGe]],DettaglioSpese[Data fattura],\">=\"&M$3,DettaglioSpese[Data fattura],\"<=\"&M$4)+SUMIFS(Altro[Importo assegno],Altro[Codice CoGe],RiepilogoSpeseMensili[[#This Row],[Codice CoGe]],Altro[Data avvio richiesta assegno],\">=\"&DATEVALUE(\" 1 \"&RiepilogoSpeseMensili[[#Headers],[Ottobre]]&_ANNO),Altro[Data avvio richiesta assegno],\"<=\"&M$4)","v":{"v":0,"d":"€ 0.00"}},{"$f":"SUMIFS(DettaglioSpese[Importo assegno],DettaglioSpese[Codice CoGe],RiepilogoSpeseMensili[[#This Row],[Codice CoGe]],DettaglioSpese[Data fattura],\">=\"&N$3,DettaglioSpese[Data fattura],\"<=\"&N$4)+SUMIFS(Altro[Importo assegno],Altro[Codice CoGe],RiepilogoSpeseMensili[[#This Row],[Codice CoGe]],Altro[Data avvio richiesta assegno],\">=\"&DATEVALUE(\" 1 \"&RiepilogoSpeseMensili[[#Headers],[Novembre]]&_ANNO),Altro[Data avvio richiesta assegno],\"<=\"&N$4)","v":{"v":0,"d":"€ 0.00"}},{"$f":"SUMIFS(DettaglioSpese[Importo assegno],DettaglioSpese[Codice CoGe],RiepilogoSpeseMensili[[#This Row],[Codice CoGe]],DettaglioSpese[Data fattura],\">=\"&O$3,DettaglioSpese[Data fattura],\"<=\"&O$4)+SUMIFS(Altro[Importo assegno],Altro[Codice CoGe],RiepilogoSpeseMensili[[#This Row],[Codice CoGe]],Altro[Data avvio richiesta assegno],\">=\"&DATEVALUE(\" 1 \"&RiepilogoSpeseMensili[[#Headers],[Dicembre]]&_ANNO),Altro[Data avvio richiesta assegno],\"<=\"&O$4)","v":{"v":0,"d":"€ 0.00"}},{"$f":"SUM(RiepilogoSpeseMensili[[#This Row],[Gennaio]:[Dicembre]])","v":{"v":0,"d":"€ 0.00"}}]
[null,10000,"Marketing",{"$f":"SUMIFS(DettaglioSpese[Importo assegno],DettaglioSpese[Codice CoGe],RiepilogoSpeseMensili[[#This Row],[Codice CoGe]],DettaglioSpese[Data fattura],\">=\"&D$3,DettaglioSpese[Data fattura],\"<=\"&D$4)+SUMIFS(Altro[Importo assegno],Altro[Codice CoGe],RiepilogoSpeseMensili[[#This Row],[Codice CoGe]],Altro[Data avvio richiesta assegno],\">=\"&DATEVALUE(\" 1 \"&RiepilogoSpeseMensili[[#Headers],[Gennaio]]&_ANNO),Altro[Data avvio richiesta assegno],\"<=\"&D$4)","v":{"v":0,"d":"€ 0.00"}},{"$f":"SUMIFS(DettaglioSpese[Importo assegno],DettaglioSpese[Codice CoGe],RiepilogoSpeseMensili[[#This Row],[Codice CoGe]],DettaglioSpese[Data fattura],\">=\"&E$3,DettaglioSpese[Data fattura],\"<=\"&E$4)+SUMIFS(Altro[Importo assegno],Altro[Codice CoGe],RiepilogoSpeseMensili[[#This Row],[Codice CoGe]],Altro[Data avvio richiesta assegno],\">=\"&DATEVALUE(\" 1 \"&RiepilogoSpeseMensili[[#Headers],[Febbraio]]&_ANNO),Altro[Data avvio richiesta assegno],\"<=\"&E$4)","v":{"v":0,"d":"€ 0.00"}},{"$f":"SUMIFS(DettaglioSpese[Importo assegno],DettaglioSpese[Codice CoGe],RiepilogoSpeseMensili[[#This Row],[Codice CoGe]],DettaglioSpese[Data fattura],\">=\"&F$3,DettaglioSpese[Data fattura],\"<=\"&F$4)+SUMIFS(Altro[Importo assegno],Altro[Codice CoGe],RiepilogoSpeseMensili[[#This Row],[Codice CoGe]],Altro[Data avvio richiesta assegno],\">=\"&DATEVALUE(\" 1 \"&RiepilogoSpeseMensili[[#Headers],[Marzo]]&_ANNO),Altro[Data avvio richiesta assegno],\"<=\"&F$4)","v":{"v":0,"d":"€ 0.00"}},{"$f":"SUMIFS(DettaglioSpese[Importo assegno],DettaglioSpese[Codice CoGe],RiepilogoSpeseMensili[[#This Row],[Codice CoGe]],DettaglioSpese[Data fattura],\">=\"&G$3,DettaglioSpese[Data fattura],\"<=\"&G$4)+SUMIFS(Altro[Importo assegno],Altro[Codice CoGe],RiepilogoSpeseMensili[[#This Row],[Codice CoGe]],Altro[Data avvio richiesta assegno],\">=\"&DATEVALUE(\" 1 \"&RiepilogoSpeseMensili[[#Headers],[Aprile]]&_ANNO),Altro[Data avvio richiesta assegno],\"<=\"&G$4)","v":{"v":0,"d":"€ 0.00"}},{"$f":"SUMIFS(DettaglioSpese[Importo assegno],DettaglioSpese[Codice CoGe],RiepilogoSpeseMensili[[#This Row],[Codice CoGe]],DettaglioSpese[Data fattura],\">=\"&H$3,DettaglioSpese[Data fattura],\"<=\"&H$4)+SUMIFS(Altro[Importo assegno],Altro[Codice CoGe],RiepilogoSpeseMensili[[#This Row],[Codice CoGe]],Altro[Data avvio richiesta assegno],\">=\"&DATEVALUE(\" 1 \"&RiepilogoSpeseMensili[[#Headers],[Maggio]]&_ANNO),Altro[Data avvio richiesta assegno],\"<=\"&H$4)","v":{"v":0,"d":"€ 0.00"}},{"$f":"SUMIFS(DettaglioSpese[Importo assegno],DettaglioSpese[Codice CoGe],RiepilogoSpeseMensili[[#This Row],[Codice CoGe]],DettaglioSpese[Data fattura],\">=\"&I$3,DettaglioSpese[Data fattura],\"<=\"&I$4)+SUMIFS(Altro[Importo assegno],Altro[Codice CoGe],RiepilogoSpeseMensili[[#This Row],[Codice CoGe]],Altro[Data avvio richiesta assegno],\">=\"&DATEVALUE(\" 1 \"&RiepilogoSpeseMensili[[#Headers],[Giugno]]&_ANNO),Altro[Data avvio richiesta assegno],\"<=\"&I$4)","v":{"v":0,"d":"€ 0.00"}},{"$f":"SUMIFS(DettaglioSpese[Importo assegno],DettaglioSpese[Codice CoGe],RiepilogoSpeseMensili[[#This Row],[Codice CoGe]],DettaglioSpese[Data fattura],\">=\"&J$3,DettaglioSpese[Data fattura],\"<=\"&J$4)+SUMIFS(Altro[Importo assegno],Altro[Codice CoGe],RiepilogoSpeseMensili[[#This Row],[Codice CoGe]],Altro[Data avvio richiesta assegno],\">=\"&DATEVALUE(\" 1\"&RiepilogoSpeseMensili[[#Headers],[Luglio]]&_ANNO),Altro[Data avvio richiesta assegno],\"<=\"&J$4)","v":{"v":0,"d":"€ 0.00"}},{"$f":"SUMIFS(DettaglioSpese[Importo assegno],DettaglioSpese[Codice CoGe],RiepilogoSpeseMensili[[#This Row],[Codice CoGe]],DettaglioSpese[Data fattura],\">=\"&K$3,DettaglioSpese[Data fattura],\"<=\"&K$4)+SUMIFS(Altro[Importo assegno],Altro[Codice CoGe],RiepilogoSpeseMensili[[#This Row],[Codice CoGe]],Altro[Data avvio richiesta assegno],\">=\"&DATEVALUE(\" 1 \"&RiepilogoSpeseMensili[[#Headers],[Agosto]]&_ANNO),Altro[Data avvio richiesta assegno],\"<=\"&K$4)","v":{"v":0,"d":"€ 0.00"}},{"$f":"SUMIFS(DettaglioSpese[Importo assegno],DettaglioSpese[Codice CoGe],RiepilogoSpeseMensili[[#This Row],[Codice CoGe]],DettaglioSpese[Data fattura],\">=\"&L$3,DettaglioSpese[Data fattura],\"<=\"&L$4)+SUMIFS(Altro[Importo assegno],Altro[Codice CoGe],RiepilogoSpeseMensili[[#This Row],[Codice CoGe]],Altro[Data avvio richiesta assegno],\">=\"&DATEVALUE(\" 1 \"&RiepilogoSpeseMensili[[#Headers],[Settembre]]&_ANNO),Altro[Data avvio richiesta assegno],\"<=\"&L$4)","v":{"v":0,"d":"€ 0.00"}},{"$f":"SUMIFS(DettaglioSpese[Importo assegno],DettaglioSpese[Codice CoGe],RiepilogoSpeseMensili[[#This Row],[Codice CoGe]],DettaglioSpese[Data fattura],\">=\"&M$3,DettaglioSpese[Data fattura],\"<=\"&M$4)+SUMIFS(Altro[Importo assegno],Altro[Codice CoGe],RiepilogoSpeseMensili[[#This Row],[Codice CoGe]],Altro[Data avvio richiesta assegno],\">=\"&DATEVALUE(\" 1 \"&RiepilogoSpeseMensili[[#Headers],[Ottobre]]&_ANNO),Altro[Data avvio richiesta assegno],\"<=\"&M$4)","v":{"v":0,"d":"€ 0.00"}},{"$f":"SUMIFS(DettaglioSpese[Importo assegno],DettaglioSpese[Codice CoGe],RiepilogoSpeseMensili[[#This Row],[Codice CoGe]],DettaglioSpese[Data fattura],\">=\"&N$3,DettaglioSpese[Data fattura],\"<=\"&N$4)+SUMIFS(Altro[Importo assegno],Altro[Codice CoGe],RiepilogoSpeseMensili[[#This Row],[Codice CoGe]],Altro[Data avvio richiesta assegno],\">=\"&DATEVALUE(\" 1 \"&RiepilogoSpeseMensili[[#Headers],[Novembre]]&_ANNO),Altro[Data avvio richiesta assegno],\"<=\"&N$4)","v":{"v":0,"d":"€ 0.00"}},{"$f":"SUMIFS(DettaglioSpese[Importo assegno],DettaglioSpese[Codice CoGe],RiepilogoSpeseMensili[[#This Row],[Codice CoGe]],DettaglioSpese[Data fattura],\">=\"&O$3,DettaglioSpese[Data fattura],\"<=\"&O$4)+SUMIFS(Altro[Importo assegno],Altro[Codice CoGe],RiepilogoSpeseMensili[[#This Row],[Codice CoGe]],Altro[Data avvio richiesta assegno],\">=\"&DATEVALUE(\" 1 \"&RiepilogoSpeseMensili[[#Headers],[Dicembre]]&_ANNO),Altro[Data avvio richiesta assegno],\"<=\"&O$4)","v":{"v":0,"d":"€ 0.00"}},{"$f":"SUM(RiepilogoSpeseMensili[[#This Row],[Gennaio]:[Dicembre]])","v":{"v":0,"d":"€ 0.00"}}]
[null,11000,"Beneficenza",{"$f":"SUMIFS(DettaglioSpese[Importo assegno],DettaglioSpese[Codice CoGe],RiepilogoSpeseMensili[[#This Row],[Codice CoGe]],DettaglioSpese[Data fattura],\">=\"&D$3,DettaglioSpese[Data fattura],\"<=\"&D$4)+SUMIFS(Altro[Importo assegno],Altro[Codice CoGe],RiepilogoSpeseMensili[[#This Row],[Codice CoGe]],Altro[Data avvio richiesta assegno],\">=\"&DATEVALUE(\" 1 \"&RiepilogoSpeseMensili[[#Headers],[Gennaio]]&_ANNO),Altro[Data avvio richiesta assegno],\"<=\"&D$4)","v":{"v":0,"d":"€ 0.00"}},{"$f":"SUMIFS(DettaglioSpese[Importo assegno],DettaglioSpese[Codice CoGe],RiepilogoSpeseMensili[[#This Row],[Codice CoGe]],DettaglioSpese[Data fattura],\">=\"&E$3,DettaglioSpese[Data fattura],\"<=\"&E$4)+SUMIFS(Altro[Importo assegno],Altro[Codice CoGe],RiepilogoSpeseMensili[[#This Row],[Codice CoGe]],Altro[Data avvio richiesta assegno],\">=\"&DATEVALUE(\" 1 \"&RiepilogoSpeseMensili[[#Headers],[Febbraio]]&_ANNO),Altro[Data avvio richiesta assegno],\"<=\"&E$4)","v":{"v":0,"d":"€ 0.00"}},{"$f":"SUMIFS(DettaglioSpese[Importo assegno],DettaglioSpese[Codice CoGe],RiepilogoSpeseMensili[[#This Row],[Codice CoGe]],DettaglioSpese[Data fattura],\">=\"&F$3,DettaglioSpese[Data fattura],\"<=\"&F$4)+SUMIFS(Altro[Importo assegno],Altro[Codice CoGe],RiepilogoSpeseMensili[[#This Row],[Codice CoGe]],Altro[Data avvio richiesta assegno],\">=\"&DATEVALUE(\" 1 \"&RiepilogoSpeseMensili[[#Headers],[Marzo]]&_ANNO),Altro[Data avvio richiesta assegno],\"<=\"&F$4)","v":{"v":0,"d":"€ 0.00"}},{"$f":"SUMIFS(DettaglioSpese[Importo assegno],DettaglioSpese[Codice CoGe],RiepilogoSpeseMensili[[#This Row],[Codice CoGe]],DettaglioSpese[Data fattura],\">=\"&G$3,DettaglioSpese[Data fattura],\"<=\"&G$4)+SUMIFS(Altro[Importo assegno],Altro[Codice CoGe],RiepilogoSpeseMensili[[#This Row],[Codice CoGe]],Altro[Data avvio richiesta assegno],\">=\"&DATEVALUE(\" 1 \"&RiepilogoSpeseMensili[[#Headers],[Aprile]]&_ANNO),Altro[Data avvio richiesta assegno],\"<=\"&G$4)","v":{"v":0,"d":"€ 0.00"}},{"$f":"SUMIFS(DettaglioSpese[Importo assegno],DettaglioSpese[Codice CoGe],RiepilogoSpeseMensili[[#This Row],[Codice CoGe]],DettaglioSpese[Data fattura],\">=\"&H$3,DettaglioSpese[Data fattura],\"<=\"&H$4)+SUMIFS(Altro[Importo assegno],Altro[Codice CoGe],RiepilogoSpeseMensili[[#This Row],[Codice CoGe]],Altro[Data avvio richiesta assegno],\">=\"&DATEVALUE(\" 1 \"&RiepilogoSpeseMensili[[#Headers],[Maggio]]&_ANNO),Altro[Data avvio richiesta assegno],\"<=\"&H$4)","v":{"v":0,"d":"€ 0.00"}},{"$f":"SUMIFS(DettaglioSpese[Importo assegno],DettaglioSpese[Codice CoGe],RiepilogoSpeseMensili[[#This Row],[Codice CoGe]],DettaglioSpese[Data fattura],\">=\"&I$3,DettaglioSpese[Data fattura],\"<=\"&I$4)+SUMIFS(Altro[Importo assegno],Altro[Codice CoGe],RiepilogoSpeseMensili[[#This Row],[Codice CoGe]],Altro[Data avvio richiesta assegno],\">=\"&DATEVALUE(\" 1 \"&RiepilogoSpeseMensili[[#Headers],[Giugno]]&_ANNO),Altro[Data avvio richiesta assegno],\"<=\"&I$4)","v":{"v":0,"d":"€ 0.00"}},{"$f":"SUMIFS(DettaglioSpese[Importo assegno],DettaglioSpese[Codice CoGe],RiepilogoSpeseMensili[[#This Row],[Codice CoGe]],DettaglioSpese[Data fattura],\">=\"&J$3,DettaglioSpese[Data fattura],\"<=\"&J$4)+SUMIFS(Altro[Importo assegno],Altro[Codice CoGe],RiepilogoSpeseMensili[[#This Row],[Codice CoGe]],Altro[Data avvio richiesta assegno],\">=\"&DATEVALUE(\" 1\"&RiepilogoSpeseMensili[[#Headers],[Luglio]]&_ANNO),Altro[Data avvio richiesta assegno],\"<=\"&J$4)","v":{"v":0,"d":"€ 0.00"}},{"$f":"SUMIFS(DettaglioSpese[Importo assegno],DettaglioSpese[Codice CoGe],RiepilogoSpeseMensili[[#This Row],[Codice CoGe]],DettaglioSpese[Data fattura],\">=\"&K$3,DettaglioSpese[Data fattura],\"<=\"&K$4)+SUMIFS(Altro[Importo assegno],Altro[Codice CoGe],RiepilogoSpeseMensili[[#This Row],[Codice CoGe]],Altro[Data avvio richiesta assegno],\">=\"&DATEVALUE(\" 1 \"&RiepilogoSpeseMensili[[#Headers],[Agosto]]&_ANNO),Altro[Data avvio richiesta assegno],\"<=\"&K$4)","v":{"v":0,"d":"€ 0.00"}},{"$f":"SUMIFS(DettaglioSpese[Importo assegno],DettaglioSpese[Codice CoGe],RiepilogoSpeseMensili[[#This Row],[Codice CoGe]],DettaglioSpese[Data fattura],\">=\"&L$3,DettaglioSpese[Data fattura],\"<=\"&L$4)+SUMIFS(Altro[Importo assegno],Altro[Codice CoGe],RiepilogoSpeseMensili[[#This Row],[Codice CoGe]],Altro[Data avvio richiesta assegno],\">=\"&DATEVALUE(\" 1 \"&RiepilogoSpeseMensili[[#Headers],[Settembre]]&_ANNO),Altro[Data avvio richiesta assegno],\"<=\"&L$4)","v":{"v":0,"d":"€ 0.00"}},{"$f":"SUMIFS(DettaglioSpese[Importo assegno],DettaglioSpese[Codice CoGe],RiepilogoSpeseMensili[[#This Row],[Codice CoGe]],DettaglioSpese[Data fattura],\">=\"&M$3,DettaglioSpese[Data fattura],\"<=\"&M$4)+SUMIFS(Altro[Importo assegno],Altro[Codice CoGe],RiepilogoSpeseMensili[[#This Row],[Codice CoGe]],Altro[Data avvio richiesta assegno],\">=\"&DATEVALUE(\" 1 \"&RiepilogoSpeseMensili[[#Headers],[Ottobre]]&_ANNO),Altro[Data avvio richiesta assegno],\"<=\"&M$4)","v":{"v":0,"d":"€ 0.00"}},{"$f":"SUMIFS(DettaglioSpese[Importo assegno],DettaglioSpese[Codice CoGe],RiepilogoSpeseMensili[[#This Row],[Codice CoGe]],DettaglioSpese[Data fattura],\">=\"&N$3,DettaglioSpese[Data fattura],\"<=\"&N$4)+SUMIFS(Altro[Importo assegno],Altro[Codice CoGe],RiepilogoSpeseMensili[[#This Row],[Codice CoGe]],Altro[Data avvio richiesta assegno],\">=\"&DATEVALUE(\" 1 \"&RiepilogoSpeseMensili[[#Headers],[Novembre]]&_ANNO),Altro[Data avvio richiesta assegno],\"<=\"&N$4)","v":{"v":0,"d":"€ 0.00"}},{"$f":"SUMIFS(DettaglioSpese[Importo assegno],DettaglioSpese[Codice CoGe],RiepilogoSpeseMensili[[#This Row],[Codice CoGe]],DettaglioSpese[Data fattura],\">=\"&O$3,DettaglioSpese[Data fattura],\"<=\"&O$4)+SUMIFS(Altro[Importo assegno],Altro[Codice CoGe],RiepilogoSpeseMensili[[#This Row],[Codice CoGe]],Altro[Data avvio richiesta assegno],\">=\"&DATEVALUE(\" 1 \"&RiepilogoSpeseMensili[[#Headers],[Dicembre]]&_ANNO),Altro[Data avvio richiesta assegno],\"<=\"&O$4)","v":{"v":0,"d":"€ 0.00"}},{"$f":"SUM(RiepilogoSpeseMensili[[#This Row],[Gennaio]:[Dicembre]])","v":{"v":0,"d":"€ 0.00"}}]
[null,12000,"Sponsorizzazioni",{"$f":"SUMIFS(DettaglioSpese[Importo assegno],DettaglioSpese[Codice CoGe],RiepilogoSpeseMensili[[#This Row],[Codice CoGe]],DettaglioSpese[Data fattura],\">=\"&D$3,DettaglioSpese[Data fattura],\"<=\"&D$4)+SUMIFS(Altro[Importo assegno],Altro[Codice CoGe],RiepilogoSpeseMensili[[#This Row],[Codice CoGe]],Altro[Data avvio richiesta assegno],\">=\"&DATEVALUE(\" 1 \"&RiepilogoSpeseMensili[[#Headers],[Gennaio]]&_ANNO),Altro[Data avvio richiesta assegno],\"<=\"&D$4)","v":{"v":0,"d":"€ 0.00"}},{"$f":"SUMIFS(DettaglioSpese[Importo assegno],DettaglioSpese[Codice CoGe],RiepilogoSpeseMensili[[#This Row],[Codice CoGe]],DettaglioSpese[Data fattura],\">=\"&E$3,DettaglioSpese[Data fattura],\"<=\"&E$4)+SUMIFS(Altro[Importo assegno],Altro[Codice CoGe],RiepilogoSpeseMensili[[#This Row],[Codice CoGe]],Altro[Data avvio richiesta assegno],\">=\"&DATEVALUE(\" 1 \"&RiepilogoSpeseMensili[[#Headers],[Febbraio]]&_ANNO),Altro[Data avvio richiesta assegno],\"<=\"&E$4)","v":{"v":0,"d":"€ 0.00"}},{"$f":"SUMIFS(DettaglioSpese[Importo assegno],DettaglioSpese[Codice CoGe],RiepilogoSpeseMensili[[#This Row],[Codice CoGe]],DettaglioSpese[Data fattura],\">=\"&F$3,DettaglioSpese[Data fattura],\"<=\"&F$4)+SUMIFS(Altro[Importo assegno],Altro[Codice CoGe],RiepilogoSpeseMensili[[#This Row],[Codice CoGe]],Altro[Data avvio richiesta assegno],\">=\"&DATEVALUE(\" 1 \"&RiepilogoSpeseMensili[[#Headers],[Marzo]]&_ANNO),Altro[Data avvio richiesta assegno],\"<=\"&F$4)","v":{"v":0,"d":"€ 0.00"}},{"$f":"SUMIFS(DettaglioSpese[Importo assegno],DettaglioSpese[Codice CoGe],RiepilogoSpeseMensili[[#This Row],[Codice CoGe]],DettaglioSpese[Data fattura],\">=\"&G$3,DettaglioSpese[Data fattura],\"<=\"&G$4)+SUMIFS(Altro[Importo assegno],Altro[Codice CoGe],RiepilogoSpeseMensili[[#This Row],[Codice CoGe]],Altro[Data avvio richiesta assegno],\">=\"&DATEVALUE(\" 1 \"&RiepilogoSpeseMensili[[#Headers],[Aprile]]&_ANNO),Altro[Data avvio richiesta assegno],\"<=\"&G$4)","v":{"v":0,"d":"€ 0.00"}},{"$f":"SUMIFS(DettaglioSpese[Importo assegno],DettaglioSpese[Codice CoGe],RiepilogoSpeseMensili[[#This Row],[Codice CoGe]],DettaglioSpese[Data fattura],\">=\"&H$3,DettaglioSpese[Data fattura],\"<=\"&H$4)+SUMIFS(Altro[Importo assegno],Altro[Codice CoGe],RiepilogoSpeseMensili[[#This Row],[Codice CoGe]],Altro[Data avvio richiesta assegno],\">=\"&DATEVALUE(\" 1 \"&RiepilogoSpeseMensili[[#Headers],[Maggio]]&_ANNO),Altro[Data avvio richiesta assegno],\"<=\"&H$4)","v":{"v":0,"d":"€ 0.00"}},{"$f":"SUMIFS(DettaglioSpese[Importo assegno],DettaglioSpese[Codice CoGe],RiepilogoSpeseMensili[[#This Row],[Codice CoGe]],DettaglioSpese[Data fattura],\">=\"&I$3,DettaglioSpese[Data fattura],\"<=\"&I$4)+SUMIFS(Altro[Importo assegno],Altro[Codice CoGe],RiepilogoSpeseMensili[[#This Row],[Codice CoGe]],Altro[Data avvio richiesta assegno],\">=\"&DATEVALUE(\" 1 \"&RiepilogoSpeseMensili[[#Headers],[Giugno]]&_ANNO),Altro[Data avvio richiesta assegno],\"<=\"&I$4)","v":{"v":0,"d":"€ 0.00"}},{"$f":"SUMIFS(DettaglioSpese[Importo assegno],DettaglioSpese[Codice CoGe],RiepilogoSpeseMensili[[#This Row],[Codice CoGe]],DettaglioSpese[Data fattura],\">=\"&J$3,DettaglioSpese[Data fattura],\"<=\"&J$4)+SUMIFS(Altro[Importo assegno],Altro[Codice CoGe],RiepilogoSpeseMensili[[#This Row],[Codice CoGe]],Altro[Data avvio richiesta assegno],\">=\"&DATEVALUE(\" 1\"&RiepilogoSpeseMensili[[#Headers],[Luglio]]&_ANNO),Altro[Data avvio richiesta assegno],\"<=\"&J$4)","v":{"v":0,"d":"€ 0.00"}},{"$f":"SUMIFS(DettaglioSpese[Importo assegno],DettaglioSpese[Codice CoGe],RiepilogoSpeseMensili[[#This Row],[Codice CoGe]],DettaglioSpese[Data fattura],\">=\"&K$3,DettaglioSpese[Data fattura],\"<=\"&K$4)+SUMIFS(Altro[Importo assegno],Altro[Codice CoGe],RiepilogoSpeseMensili[[#This Row],[Codice CoGe]],Altro[Data avvio richiesta assegno],\">=\"&DATEVALUE(\" 1 \"&RiepilogoSpeseMensili[[#Headers],[Agosto]]&_ANNO),Altro[Data avvio richiesta assegno],\"<=\"&K$4)","v":{"v":0,"d":"€ 0.00"}},{"$f":"SUMIFS(DettaglioSpese[Importo assegno],DettaglioSpese[Codice CoGe],RiepilogoSpeseMensili[[#This Row],[Codice CoGe]],DettaglioSpese[Data fattura],\">=\"&L$3,DettaglioSpese[Data fattura],\"<=\"&L$4)+SUMIFS(Altro[Importo assegno],Altro[Codice CoGe],RiepilogoSpeseMensili[[#This Row],[Codice CoGe]],Altro[Data avvio richiesta assegno],\">=\"&DATEVALUE(\" 1 \"&RiepilogoSpeseMensili[[#Headers],[Settembre]]&_ANNO),Altro[Data avvio richiesta assegno],\"<=\"&L$4)","v":{"v":0,"d":"€ 0.00"}},{"$f":"SUMIFS(DettaglioSpese[Importo assegno],DettaglioSpese[Codice CoGe],RiepilogoSpeseMensili[[#This Row],[Codice CoGe]],DettaglioSpese[Data fattura],\">=\"&M$3,DettaglioSpese[Data fattura],\"<=\"&M$4)+SUMIFS(Altro[Importo assegno],Altro[Codice CoGe],RiepilogoSpeseMensili[[#This Row],[Codice CoGe]],Altro[Data avvio richiesta assegno],\">=\"&DATEVALUE(\" 1 \"&RiepilogoSpeseMensili[[#Headers],[Ottobre]]&_ANNO),Altro[Data avvio richiesta assegno],\"<=\"&M$4)","v":{"v":0,"d":"€ 0.00"}},{"$f":"SUMIFS(DettaglioSpese[Importo assegno],DettaglioSpese[Codice CoGe],RiepilogoSpeseMensili[[#This Row],[Codice CoGe]],DettaglioSpese[Data fattura],\">=\"&N$3,DettaglioSpese[Data fattura],\"<=\"&N$4)+SUMIFS(Altro[Importo assegno],Altro[Codice CoGe],RiepilogoSpeseMensili[[#This Row],[Codice CoGe]],Altro[Data avvio richiesta assegno],\">=\"&DATEVALUE(\" 1 \"&RiepilogoSpeseMensili[[#Headers],[Novembre]]&_ANNO),Altro[Data avvio richiesta assegno],\"<=\"&N$4)","v":{"v":0,"d":"€ 0.00"}},{"$f":"SUMIFS(DettaglioSpese[Importo assegno],DettaglioSpese[Codice CoGe],RiepilogoSpeseMensili[[#This Row],[Codice CoGe]],DettaglioSpese[Data fattura],\">=\"&O$3,DettaglioSpese[Data fattura],\"<=\"&O$4)+SUMIFS(Altro[Importo assegno],Altro[Codice CoGe],RiepilogoSpeseMensili[[#This Row],[Codice CoGe]],Altro[Data avvio richiesta assegno],\">=\"&DATEVALUE(\" 1 \"&RiepilogoSpeseMensili[[#Headers],[Dicembre]]&_ANNO),Altro[Data avvio richiesta assegno],\"<=\"&O$4)","v":{"v":0,"d":"€ 0.00"}},{"$f":"SUM(RiepilogoSpeseMensili[[#This Row],[Gennaio]:[Dicembre]])","v":{"v":0,"d":"€ 0.00"}}]
[null,"Totale",null,{"$f":"SUBTOTAL(109,RiepilogoSpeseMensili[Gennaio])","v":{"v":0,"d":"€ 0.00"}},{"$f":"SUBTOTAL(109,RiepilogoSpeseMensili[Febbraio])","v":{"v":0,"d":"€ 0.00"}},{"$f":"SUBTOTAL(109,RiepilogoSpeseMensili[Marzo])","v":{"v":0,"d":"€ 0.00"}},{"$f":"SUBTOTAL(109,RiepilogoSpeseMensili[Aprile])","v":{"v":0,"d":"€ 0.00"}},{"$f":"SUBTOTAL(109,RiepilogoSpeseMensili[Maggio])","v":{"v":0,"d":"€ 0.00"}},{"$f":"SUBTOTAL(109,RiepilogoSpeseMensili[Giugno])","v":{"v":0,"d":"€ 0.00"}},{"$f":"SUBTOTAL(109,RiepilogoSpeseMensili[Luglio])","v":{"v":0,"d":"€ 0.00"}},{"$f":"SUBTOTAL(109,RiepilogoSpeseMensili[Agosto])","v":{"v":0,"d":"€ 0.00"}},{"$f":"SUBTOTAL(109,RiepilogoSpeseMensili[Settembre])","v":{"v":0,"d":"€ 0.00"}},{"$f":"SUBTOTAL(109,RiepilogoSpeseMensili[Ottobre])","v":{"v":0,"d":"€ 0.00"}},{"$f":"SUBTOTAL(109,RiepilogoSpeseMensili[Novembre])","v":{"v":0,"d":"€ 0.00"}},{"$f":"SUBTOTAL(109,RiepilogoSpeseMensili[Dicembre])","v":{"v":0,"d":"€ 0.00"}},{"$f":"SUBTOTAL(109,RiepilogoSpeseMensili[Totale])","v":{"v":0,"d":"€ 0.00"}}]

{"sheet":"DETTAGLIO SPESE","index":2,"n_rows":6,"n_cols":10,"rows_kept":6,"merged":[[1,1,1,9],[2,1,2,5],[2,6,2,9]]}
[]
[null,"DETTAGLIO SPESE"]
[]
[null,"Codice CoGe","Data fattura","N. fattura","Richiedente","Importo assegno","Beneficiario","Uso assegno","Metodo di distribuzione","Data archiviazione"]
[null,1000,"Data",100,"Diego Sagese",{"v":750.75,"d":"€ 750.75"},"Consolidated Messenger ","Mailer","Posta","Data"]
[null,7000,"Data",101,"Luca Udinesi",{"v":2500,"d":"€ 2,500.00"},"A. Datum Corporation ","2 computer desktop","Credito","Data"]

{"sheet":"BENEFICENZA E SPONSORIZZAZIONI","index":3,"n_rows":6,"n_cols":12,"rows_kept":6,"merged":[[1,1,1,11],[2,1,2,5],[2,6,2,11]]}
[]
[null,"BENEFICENZA E SPONSORIZZAZIONI"]
[]
[null,"Codice CoGe","Data avvio richiesta assegno","Richiedente","Importo assegno","Contributo anno precedente","Beneficiario","Scopo","Approvato da","Categoria","Metodo di distribuzione","Data archiviazione"]
[null,12000,"Data","Giorgia Fanucci",{"v":1000,"d":"€ 1,000.00"},{"v":12,"d":"€ 12.00"},"School of Fine Art ","Borse di studio","Rebecca Baresi","Arte","Assegno","Data"]
[null,11000,"Data","Giorgia Fanucci",{"v":2500,"d":"€ 2,500.00"},{"v":0,"d":"€ 0.00"},"Wingtip Toys ","Community","Francesca Bianchi","Community","Assegno","Data"]